Workbook

Sheet Sheet1
B1: The Third Derivative
B3: This DIGMath module lets you investigate
B4: the properties of the third derivative
B5: and how it relates to the function
C6: and the first two derivatives.
A9: This exploration is based on the function f(x) = | F9: x5-2x4-13x3+14x2+24x
B10: but the results are typical for any function
A12: Now enter the interval for x:
C13: xMin = | D13: -3.5
C14: xMax = | D14: 4
A16: Select all the graphs you want to see
B18: TRUE
M19: The graphs of y = f(x) | P19: = x5-2x4-13x3+14x2+24x
B20: TRUE | N20: and its first, second, and third derivatives
B22: FALSE | M22: Select the point on the curve at x0 = | Q22: =P24 -> -2
B24: TRUE | O24: 20 | P24: =D13+O24*(D14-D13)/100 -> -2
A27: Complete the following statements using your knowledge of derivatives | M27: The value of the function f(x0) = | Q27: =LOOKUP(P$24,Sheet2!E$3:E$504,Sheet2!F$3:F$504) -> 48.13141266
B28: and your investigations with this DIGMath graphing utility | M28: The value of derivative f '( x0) = | Q28: =LOOKUP(P24,Sheet2!E3:E504,Sheet2!G3:G504) -> -43.78327348
A29: 1. When f ''' > 0, f '' is | H29: Item 1 | M29: The value of second derivative f''( x0) = | Q29: =LOOKUP(P$24,Sheet2!E$3:E$504,Sheet2!H$3:H$504) -> -72.77374646
A30: 2. When f ''' < 0, f '' is | H30: Item 2 | M30: The value of third derivative f '''( x0) = | Q30: =LOOKUP(P$24,Sheet2!E$3:E$504,Sheet2!I$3:I$504) -> 258.8628133
A31: 3. When f ''' > 0, f ' is | H31: Item 3
A32: 4. When f ''' < 0, f ' is | H32: Item 4
A33: 5. When f ''' = 0, f '' may have a | H33: Item 5
A34: 6. When f ''' = 0, f ' is at an | H34: Item 6
A35: 7. When f ''' > 0, the concavity of f is | H35: Item 7
A36: 8. When f ''' < 0, the concavity of f is | H36: Item 8
A37: 9. When f ''' = 0, the concavity of f is either | H37: Item 9
A41: To access/download all the DIGMath Apps for Calculus
A42: Click this link: | C42: DIGMath for Calculus
A44: Created by: Sheldon P. Gordon
A45: Farmingdale State College
A46: Development of this module was supported by the
A47: NSF's Division of Undergraduate Education
A48: under grants DUE-0310123 and DUE-0442160.

Sheet Sheet2
E1: x | F1: f(x) | G1: f '(x) | H1: f ''(x) | I1: f'''(x) | K1: Plotting f | M1: Plotting f' | O1: Plotting f'' | Q1: Plotting f'''
F2: =Sheet1!F11 -> 0 | K2: x | L2: y | M2: x | N2: y | O2: x | P2: y | Q2: x | R2: y
A3: delta x = | B3: =(Sheet1!D14-Sheet1!D13)/501 -> 0.01497005988 | E3: =Sheet1!D13 -> -3.50 | F3: =E3^5-2*E3^4-13*E3^3+14*E3^2+24*E3 -> -180.46875 | G3: =5*E3^4-8*E3^3-39*E3^2+28*E3+24 -> 541.5625 | H3: =20*E3^3-24*E3^2-78*E3+28 -> -850.5 | I3: =60*E3^2-48*E3-78 -> 825 | K3: =IF(Sheet1!$B$18=TRUE,E3,a) -> -3.5 | L3: =IF(Sheet1!$B$18=TRUE,F3,0) -> -180.46875 | M3: =IF(Sheet1!$B$20=TRUE,$E3,a) -> -3.5 | N3: =IF(Sheet1!$B$20=TRUE,G3,0) -> 541.5625 | O3: =IF(Sheet1!$B$22=TRUE,$E3,a) -> -3.5 | P3: =IF(Sheet1!$B$22=TRUE,H3,0) -> 0 | Q3: =IF(Sheet1!$B$24=TRUE,$E3,a) -> -3.5 | R3: =IF(Sheet1!$B$24=TRUE,I3,0) -> 825
E4: =E3+Sheet2!B$3 -> -3.49 | F4: =E4^5-2*E4^4-13*E4^3+14*E4^2+24*E4 -> -172.4563663 | G4: =5*E4^4-8*E4^3-39*E4^2+28*E4+24 -> 528.922645 | H4: =20*E4^3-24*E4^2-78*E4+28 -> -838.2020735 | I4: =60*E4^2-48*E4-78 -> 818.0074581 | K4: =IF(Sheet1!$B$18=TRUE,E4,a) -> -3.48502994 | L4: =IF(Sheet1!$B$18=TRUE,F4,0) -> -172.4563663 | M4: =IF(Sheet1!$B$20=TRUE,$E4,a) -> -3.48502994 | N4: =IF(Sheet1!$B$20=TRUE,G4,0) -> 528.922645 | O4: =IF(Sheet1!$B$22=TRUE,$E4,a) -> -3.5 | P4: =IF(Sheet1!$B$22=TRUE,H4,0) -> 0 | Q4: =IF(Sheet1!$B$24=TRUE,$E4,a) -> -3.48502994 | R4: =IF(Sheet1!$B$24=TRUE,I4,0) -> 818.0074581
A5: Point on f | E5: =E4+Sheet2!B$3 -> -3.47 | F5: -164.6318279 | G5: 516.4661082 | H5: -826.0086245 | I5: 811.0418086 | K5: =IF(Sheet1!$B$18=TRUE,E5,a) -> -3.47005988 | L5: =IF(Sheet1!$B$18=TRUE,F5,0) -> -164.6318279 | M5: =IF(Sheet1!$B$20=TRUE,$E5,a) -> -3.47005988 | N5: =IF(Sheet1!$B$20=TRUE,G5,0) -> 516.4661082 | O5: =IF(Sheet1!$B$22=TRUE,$E5,a) -> -3.5 | P5: =IF(Sheet1!$B$22=TRUE,H5,0) -> 0 | Q5: =IF(Sheet1!$B$24=TRUE,$E5,a) -> -3.47005988 | R5: =IF(Sheet1!$B$24=TRUE,I5,0) -> 811.0418086
A6: xl= | B6: =Sheet1!P24 -> -2 | C6: =LOOKUP(Sheet1!P24,Sheet2!E3:E502,Sheet2!F3:F502) -> 48.13141266 | D6: "=yl | E6: =E5+Sheet2!B$3 -> -3.46 | F6: -156.9924022 | G6: 504.1913285 | H6: -813.9192505 | I6: 804.1030514 | K6: =IF(Sheet1!$B$18=TRUE,E6,a) -> -3.45508982 | L6: =IF(Sheet1!$B$18=TRUE,F6,0) -> -156.9924022 | M6: =IF(Sheet1!$B$20=TRUE,$E6,a) -> -3.45508982 | N6: =IF(Sheet1!$B$20=TRUE,G6,0) -> 504.1913285 | O6: =IF(Sheet1!$B$22=TRUE,$E6,a) -> -3.5 | P6: =IF(Sheet1!$B$22=TRUE,H6,0) -> 0 | Q6: =IF(Sheet1!$B$24=TRUE,$E6,a) -> -3.45508982 | R6: =IF(Sheet1!$B$24=TRUE,I6,0) -> 804.1030514
A7: xr= | B7: =B6 -> -2 | C7: =C6 -> 48.13141266 | D7: "=yR | E7: =E6+Sheet2!B$3 -> -3.44 | F7: -149.5353799 | G7: 492.096751 | H7: -801.9335487 | I7: 797.1911865 | K7: =IF(Sheet1!$B$18=TRUE,E7,a) -> -3.44011976 | L7: =IF(Sheet1!$B$18=TRUE,F7,0) -> -149.5353799 | M7: =IF(Sheet1!$B$20=TRUE,$E7,a) -> -3.44011976 | N7: =IF(Sheet1!$B$20=TRUE,G7,0) -> 492.096751 | O7: =IF(Sheet1!$B$22=TRUE,$E7,a) -> -3.5 | P7: =IF(Sheet1!$B$22=TRUE,H7,0) -> 0 | Q7: =IF(Sheet1!$B$24=TRUE,$E7,a) -> -3.44011976 | R7: =IF(Sheet1!$B$24=TRUE,I7,0) -> 797.1911865
E8: =E7+Sheet2!B$3 -> -3.43 | F8: -142.2580751 | G8: 480.1808267 | H8: -790.0511167 | I8: 790.3062139 | K8: =IF(Sheet1!$B$18=TRUE,E8,a) -> -3.425149701 | L8: =IF(Sheet1!$B$18=TRUE,F8,0) -> -142.2580751 | M8: =IF(Sheet1!$B$20=TRUE,$E8,a) -> -3.425149701 | N8: =IF(Sheet1!$B$20=TRUE,G8,0) -> 480.1808267 | O8: =IF(Sheet1!$B$22=TRUE,$E8,a) -> -3.5 | P8: =IF(Sheet1!$B$22=TRUE,H8,0) -> 0 | Q8: =IF(Sheet1!$B$24=TRUE,$E8,a) -> -3.425149701 | R8: =IF(Sheet1!$B$24=TRUE,I8,0) -> 790.3062139
A9: Point on f' | E9: =E8+Sheet2!B$3 -> -3.41 | F9: -135.1578247 | G9: 468.4420127 | H9: -778.2715518 | I9: 783.4481337 | K9: =IF(Sheet1!$B$18=TRUE,E9,a) -> -3.410179641 | L9: =IF(Sheet1!$B$18=TRUE,F9,0) -> -135.1578247 | M9: =IF(Sheet1!$B$20=TRUE,$E9,a) -> -3.410179641 | N9: =IF(Sheet1!$B$20=TRUE,G9,0) -> 468.4420127 | O9: =IF(Sheet1!$B$22=TRUE,$E9,a) -> -3.5 | P9: =IF(Sheet1!$B$22=TRUE,H9,0) -> 0 | Q9: =IF(Sheet1!$B$24=TRUE,$E9,a) -> -3.410179641 | R9: =IF(Sheet1!$B$24=TRUE,I9,0) -> 783.4481337
A10: x = | B10: =B6 -> -2 | C10: =LOOKUP(Sheet1!P$24,Sheet2!E3:E503,Sheet2!G$3:G503) -> -43.78327348 | D10: = y | E10: =E9+Sheet2!B$3 -> -3.40 | F10: -128.231989 | G10: 456.878772 | H10: -766.5944515 | I10: 776.6169457 | K10: =IF(Sheet1!$B$18=TRUE,E10,a) -> -3.395209581 | L10: =IF(Sheet1!$B$18=TRUE,F10,0) -> -128.231989 | M10: =IF(Sheet1!$B$20=TRUE,$E10,a) -> -3.395209581 | N10: =IF(Sheet1!$B$20=TRUE,G10,0) -> 456.878772 | O10: =IF(Sheet1!$B$22=TRUE,$E10,a) -> -3.5 | P10: =IF(Sheet1!$B$22=TRUE,H10,0) -> 0 | Q10: =IF(Sheet1!$B$24=TRUE,$E10,a) -> -3.395209581 | R10: =IF(Sheet1!$B$24=TRUE,I10,0) -> 776.6169457
E11: =E10+Sheet2!B$3 -> -3.38 | F11: -121.4779511 | G11: 445.4895737 | H11: -755.0194133 | I11: 769.8126501 | K11: =IF(Sheet1!$B$18=TRUE,E11,a) -> -3.380239521 | L11: =IF(Sheet1!$B$18=TRUE,F11,0) -> -121.4779511 | M11: =IF(Sheet1!$B$20=TRUE,$E11,a) -> -3.380239521 | N11: =IF(Sheet1!$B$20=TRUE,G11,0) -> 445.4895737 | O11: =IF(Sheet1!$B$22=TRUE,$E11,a) -> -3.5 | P11: =IF(Sheet1!$B$22=TRUE,H11,0) -> 0 | Q11: =IF(Sheet1!$B$24=TRUE,$E11,a) -> -3.380239521 | R11: =IF(Sheet1!$B$24=TRUE,I11,0) -> 769.8126501
E12: =E11+Sheet2!B$3 -> -3.37 | F12: -114.8931169 | G12: 434.272893 | H12: -743.5460344 | I12: 763.0352469 | K12: =IF(Sheet1!$B$18=TRUE,E12,a) -> -3.365269461 | L12: =IF(Sheet1!$B$18=TRUE,F12,0) -> -114.8931169 | M12: =IF(Sheet1!$B$20=TRUE,$E12,a) -> -3.365269461 | N12: =IF(Sheet1!$B$20=TRUE,G12,0) -> 434.272893 | O12: =IF(Sheet1!$B$22=TRUE,$E12,a) -> -3.5 | P12: =IF(Sheet1!$B$22=TRUE,H12,0) -> 0 | Q12: =IF(Sheet1!$B$24=TRUE,$E12,a) -> -3.365269461 | R12: =IF(Sheet1!$B$24=TRUE,I12,0) -> 763.0352469
A13: Point on f'' | E13: =E12+Sheet2!B$3 -> -3.35 | F13: -108.4749154 | G13: 423.2272111 | H13: -732.1739124 | I13: 756.2847359 | K13: =IF(Sheet1!$B$18=TRUE,E13,a) -> -3.350299401 | L13: =IF(Sheet1!$B$18=TRUE,F13,0) -> -108.4749154 | M13: =IF(Sheet1!$B$20=TRUE,$E13,a) -> -3.350299401 | N13: =IF(Sheet1!$B$20=TRUE,G13,0) -> 423.2272111 | O13: =IF(Sheet1!$B$22=TRUE,$E13,a) -> -3.5 | P13: =IF(Sheet1!$B$22=TRUE,H13,0) -> 0 | Q13: =IF(Sheet1!$B$24=TRUE,$E13,a) -> -3.350299401 | R13: =IF(Sheet1!$B$24=TRUE,I13,0) -> 756.2847359
A14: x = | B14: =B6 -> -2 | C14: =LOOKUP(Sheet1!P$24,Sheet2!E$3:E$503,Sheet2!H$3:H$503) -> -72.77374646 | D14: = y | E14: =E13+Sheet2!B$3 -> -3.34 | F14: -102.2207978 | G14: 412.3510151 | H14: -720.9026446 | I14: 749.5611173 | K14: =IF(Sheet1!$B$18=TRUE,E14,a) -> -3.335329341 | L14: =IF(Sheet1!$B$18=TRUE,F14,0) -> -102.2207978 | M14: =IF(Sheet1!$B$20=TRUE,$E14,a) -> -3.335329341 | N14: =IF(Sheet1!$B$20=TRUE,G14,0) -> 412.3510151 | O14: =IF(Sheet1!$B$22=TRUE,$E14,a) -> -3.5 | P14: =IF(Sheet1!$B$22=TRUE,H14,0) -> 0 | Q14: =IF(Sheet1!$B$24=TRUE,$E14,a) -> -3.335329341 | R14: =IF(Sheet1!$B$24=TRUE,I14,0) -> 749.5611173
E15: =E14+Sheet2!B$3 -> -3.32 | F15: -96.12823836 | G15: 401.6427983 | H15: -709.7318286 | I15: 742.864391 | K15: =IF(Sheet1!$B$18=TRUE,E15,a) -> -3.320359281 | L15: =IF(Sheet1!$B$18=TRUE,F15,0) -> -96.12823836 | M15: =IF(Sheet1!$B$20=TRUE,$E15,a) -> -3.320359281 | N15: =IF(Sheet1!$B$20=TRUE,G15,0) -> 401.6427983 | O15: =IF(Sheet1!$B$22=TRUE,$E15,a) -> -3.5 | P15: =IF(Sheet1!$B$22=TRUE,H15,0) -> 0 | Q15: =IF(Sheet1!$B$24=TRUE,$E15,a) -> -3.320359281 | R15: =IF(Sheet1!$B$24=TRUE,I15,0) -> 742.864391
E16: =E15+Sheet2!B$3 -> -3.31 | F16: -90.1947336 | G16: 391.1010599 | H16: -698.6610616 | I16: 736.194557 | K16: =IF(Sheet1!$B$18=TRUE,E16,a) -> -3.305389222 | L16: =IF(Sheet1!$B$18=TRUE,F16,0) -> -90.1947336 | M16: =IF(Sheet1!$B$20=TRUE,$E16,a) -> -3.305389222 | N16: =IF(Sheet1!$B$20=TRUE,G16,0) -> 391.1010599 | O16: =IF(Sheet1!$B$22=TRUE,$E16,a) -> -3.5 | P16: =IF(Sheet1!$B$22=TRUE,H16,0) -> 0 | Q16: =IF(Sheet1!$B$24=TRUE,$E16,a) -> -3.305389222 | R16: =IF(Sheet1!$B$24=TRUE,I16,0) -> 736.194557
A17: Point on f''' | E17: =E16+Sheet2!B$3 -> -3.29 | F17: -84.41780252 | G17: 380.7243052 | H17: -687.6899412 | I17: 729.5516153 | K17: =IF(Sheet1!$B$18=TRUE,E17,a) -> -3.290419162 | L17: =IF(Sheet1!$B$18=TRUE,F17,0) -> -84.41780252 | M17: =IF(Sheet1!$B$20=TRUE,$E17,a) -> -3.290419162 | N17: =IF(Sheet1!$B$20=TRUE,G17,0) -> 380.7243052 | O17: =IF(Sheet1!$B$22=TRUE,$E17,a) -> -3.5 | P17: =IF(Sheet1!$B$22=TRUE,H17,0) -> 0 | Q17: =IF(Sheet1!$B$24=TRUE,$E17,a) -> -3.290419162 | R17: =IF(Sheet1!$B$24=TRUE,I17,0) -> 729.5516153
A18: x = | B18: =B6 -> -2 | C18: =LOOKUP(Sheet1!P$24,Sheet2!E$3:E$503,Sheet2!I$3:I$503) -> 258.8628133 | D18: = y | E18: =E17+Sheet2!B$3 -> -3.28 | F18: -78.79498646 | G18: 370.5110455 | H18: -676.8180647 | I18: 722.935566 | K18: =IF(Sheet1!$B$18=TRUE,E18,a) -> -3.275449102 | L18: =IF(Sheet1!$B$18=TRUE,F18,0) -> -78.79498646 | M18: =IF(Sheet1!$B$20=TRUE,$E18,a) -> -3.275449102 | N18: =IF(Sheet1!$B$20=TRUE,G18,0) -> 370.5110455 | O18: =IF(Sheet1!$B$22=TRUE,$E18,a) -> -3.5 | P18: =IF(Sheet1!$B$22=TRUE,H18,0) -> 0 | Q18: =IF(Sheet1!$B$24=TRUE,$E18,a) -> -3.275449102 | R18: =IF(Sheet1!$B$24=TRUE,I18,0) -> 722.935566
E19: =E18+Sheet2!B$3 -> -3.26 | F19: -73.323849 | G19: 360.4597981 | H19: -666.0450296 | I19: 716.346409 | K19: =IF(Sheet1!$B$18=TRUE,E19,a) -> -3.260479042 | L19: =IF(Sheet1!$B$18=TRUE,F19,0) -> -73.323849 | M19: =IF(Sheet1!$B$20=TRUE,$E19,a) -> -3.260479042 | N19: =IF(Sheet1!$B$20=TRUE,G19,0) -> 360.4597981 | O19: =IF(Sheet1!$B$22=TRUE,$E19,a) -> -3.5 | P19: =IF(Sheet1!$B$22=TRUE,H19,0) -> 0 | Q19: =IF(Sheet1!$B$24=TRUE,$E19,a) -> -3.260479042 | R19: =IF(Sheet1!$B$24=TRUE,I19,0) -> 716.346409
E20: =E19+Sheet2!B$3 -> -3.25 | F20: -68.00197586 | G20: 350.5690864 | H20: -655.3704332 | I20: 709.7841443 | K20: =IF(Sheet1!$B$18=TRUE,E20,a) -> -3.245508982 | L20: =IF(Sheet1!$B$18=TRUE,F20,0) -> -68.00197586 | M20: =IF(Sheet1!$B$20=TRUE,$E20,a) -> -3.245508982 | N20: =IF(Sheet1!$B$20=TRUE,G20,0) -> 350.5690864 | O20: =IF(Sheet1!$B$22=TRUE,$E20,a) -> -3.5 | P20: =IF(Sheet1!$B$22=TRUE,H20,0) -> 0 | Q20: =IF(Sheet1!$B$24=TRUE,$E20,a) -> -3.245508982 | R20: =IF(Sheet1!$B$24=TRUE,I20,0) -> 709.7841443
E21: =E20+Sheet2!B$3 -> -3.23 | F21: -62.82697483 | G21: 340.8374396 | H21: -644.7938731 | I21: 703.2487719 | K21: =IF(Sheet1!$B$18=TRUE,E21,a) -> -3.230538922 | L21: =IF(Sheet1!$B$18=TRUE,F21,0) -> -62.82697483 | M21: =IF(Sheet1!$B$20=TRUE,$E21,a) -> -3.230538922 | N21: =IF(Sheet1!$B$20=TRUE,G21,0) -> 340.8374396 | O21: =IF(Sheet1!$B$22=TRUE,$E21,a) -> -3.5 | P21: =IF(Sheet1!$B$22=TRUE,H21,0) -> 0 | Q21: =IF(Sheet1!$B$24=TRUE,$E21,a) -> -3.230538922 | R21: =IF(Sheet1!$B$24=TRUE,I21,0) -> 703.2487719
E22: =E21+Sheet2!B$3 -> -3.22 | F22: -57.79647567 | G22: 331.2633934 | H22: -634.3149466 | I22: 696.7402919 | K22: =IF(Sheet1!$B$18=TRUE,E22,a) -> -3.215568862 | L22: =IF(Sheet1!$B$18=TRUE,F22,0) -> -57.79647567 | M22: =IF(Sheet1!$B$20=TRUE,$E22,a) -> -3.215568862 | N22: =IF(Sheet1!$B$20=TRUE,G22,0) -> 331.2633934 | O22: =IF(Sheet1!$B$22=TRUE,$E22,a) -> -3.5 | P22: =IF(Sheet1!$B$22=TRUE,H22,0) -> 0 | Q22: =IF(Sheet1!$B$24=TRUE,$E22,a) -> -3.215568862 | R22: =IF(Sheet1!$B$24=TRUE,I22,0) -> 696.7402919
A23: vertical lines | E23: =E22+Sheet2!B$3 -> -3.20 | F23: -52.90813001 | G23: 321.845489 | H23: -623.9332511 | I23: 690.2587041 | K23: =IF(Sheet1!$B$18=TRUE,E23,a) -> -3.200598802 | L23: =IF(Sheet1!$B$18=TRUE,F23,0) -> -52.90813001 | M23: =IF(Sheet1!$B$20=TRUE,$E23,a) -> -3.200598802 | N23: =IF(Sheet1!$B$20=TRUE,G23,0) -> 321.845489 | O23: =IF(Sheet1!$B$22=TRUE,$E23,a) -> -3.5 | P23: =IF(Sheet1!$B$22=TRUE,H23,0) -> 0 | Q23: =IF(Sheet1!$B$24=TRUE,$E23,a) -> -3.200598802 | R23: =IF(Sheet1!$B$24=TRUE,I23,0) -> 690.2587041
A24: vertical | B24: =Sheet1!P24 -> -2 | C24: =MIN(LOOKUP(Sheet1!P24,Sheet2!E3:E504:'Sheet2'!F3:F504),LOOKUP(Sheet1!P24,Sheet2!E3:E504:'Sheet2'!G3:G504),LOOKUP(Sheet1!P24,Sheet2!E3:E504,Sheet2!H3:H504), LOOKUP(Sheet1!P24,Sheet2!E3:E504,Sheet2!I3:I504)) -> -72.77374646 | D24: = ymin | E24: =E23+Sheet2!B$3 -> -3.19 | F24: -48.15961129 | G24: 312.5822739 | H24: -613.6483841 | I24: 683.8040087 | K24: =IF(Sheet1!$B$18=TRUE,E24,a) -> -3.185628743 | L24: =IF(Sheet1!$B$18=TRUE,F24,0) -> -48.15961129 | M24: =IF(Sheet1!$B$20=TRUE,$E24,a) -> -3.185628743 | N24: =IF(Sheet1!$B$20=TRUE,G24,0) -> 312.5822739 | O24: =IF(Sheet1!$B$22=TRUE,$E24,a) -> -3.5 | P24: =IF(Sheet1!$B$22=TRUE,H24,0) -> 0 | Q24: =IF(Sheet1!$B$24=TRUE,$E24,a) -> -3.185628743 | R24: =IF(Sheet1!$B$24=TRUE,I24,0) -> 683.8040087
B25: =Sheet1!P24 -> -2 | C25: =MAX(LOOKUP(Sheet1!P24,Sheet2!E3:E505:'Sheet2'!F3:F505),LOOKUP(Sheet1!P24,Sheet2!E3:E505:'Sheet2'!G3:G505),LOOKUP(Sheet1!P24,Sheet2!E3:E505,Sheet2!H3:H505), LOOKUP(Sheet1!P24,Sheet2!E3:E505,Sheet2!I3:I505)) -> 258.8628133 | D25: = ymax | E25: =E24+Sheet2!B$3 -> -3.17 | F25: -43.54861461 | G25: 303.4723017 | H25: -603.459943 | I25: 677.3762057 | K25: =IF(Sheet1!$B$18=TRUE,E25,a) -> -3.170658683 | L25: =IF(Sheet1!$B$18=TRUE,F25,0) -> -43.54861461 | M25: =IF(Sheet1!$B$20=TRUE,$E25,a) -> -3.170658683 | N25: =IF(Sheet1!$B$20=TRUE,G25,0) -> 303.4723017 | O25: =IF(Sheet1!$B$22=TRUE,$E25,a) -> -3.5 | P25: =IF(Sheet1!$B$22=TRUE,H25,0) -> 0 | Q25: =IF(Sheet1!$B$24=TRUE,$E25,a) -> -3.170658683 | R25: =IF(Sheet1!$B$24=TRUE,I25,0) -> 677.3762057
E26: =E25+Sheet2!B$3 -> -3.16 | F26: -39.07285673 | G26: 294.5141318 | H26: -593.3675252 | I26: 670.9752949 | K26: =IF(Sheet1!$B$18=TRUE,E26,a) -> -3.155688623 | L26: =IF(Sheet1!$B$18=TRUE,F26,0) -> -39.07285673 | M26: =IF(Sheet1!$B$20=TRUE,$E26,a) -> -3.155688623 | N26: =IF(Sheet1!$B$20=TRUE,G26,0) -> 294.5141318 | O26: =IF(Sheet1!$B$22=TRUE,$E26,a) -> -3.5 | P26: =IF(Sheet1!$B$22=TRUE,H26,0) -> 0 | Q26: =IF(Sheet1!$B$24=TRUE,$E26,a) -> -3.155688623 | R26: =IF(Sheet1!$B$24=TRUE,I26,0) -> 670.9752949
E27: =E26+Sheet2!B$3 -> -3.14 | F27: -34.7300759 | G27: 285.7063298 | H27: -583.3707281 | I27: 664.6012765 | K27: =IF(Sheet1!$B$18=TRUE,E27,a) -> -3.140718563 | L27: =IF(Sheet1!$B$18=TRUE,F27,0) -> -34.7300759 | M27: =IF(Sheet1!$B$20=TRUE,$E27,a) -> -3.140718563 | N27: =IF(Sheet1!$B$20=TRUE,G27,0) -> 285.7063298 | O27: =IF(Sheet1!$B$22=TRUE,$E27,a) -> -3.5 | P27: =IF(Sheet1!$B$22=TRUE,H27,0) -> 0 | Q27: =IF(Sheet1!$B$24=TRUE,$E27,a) -> -3.140718563 | R27: =IF(Sheet1!$B$24=TRUE,I27,0) -> 664.6012765
E28: =E27+Sheet2!B$3 -> -3.13 | F28: -30.51803179 | G28: 277.0474672 | H28: -573.4691492 | I28: 658.2541504 | K28: =IF(Sheet1!$B$18=TRUE,E28,a) -> -3.125748503 | L28: =IF(Sheet1!$B$18=TRUE,F28,0) -> -30.51803179 | M28: =IF(Sheet1!$B$20=TRUE,$E28,a) -> -3.125748503 | N28: =IF(Sheet1!$B$20=TRUE,G28,0) -> 277.0474672 | O28: =IF(Sheet1!$B$22=TRUE,$E28,a) -> -3.5 | P28: =IF(Sheet1!$B$22=TRUE,H28,0) -> 0 | Q28: =IF(Sheet1!$B$24=TRUE,$E28,a) -> -3.125748503 | R28: =IF(Sheet1!$B$24=TRUE,I28,0) -> 658.2541504
E29: =E28+Sheet2!B$3 -> -3.11 | F29: -26.43450544 | G29: 268.5361217 | H29: -563.6623858 | I29: 651.9339166 | K29: =IF(Sheet1!$B$18=TRUE,E29,a) -> -3.110778443 | L29: =IF(Sheet1!$B$18=TRUE,F29,0) -> -26.43450544 | M29: =IF(Sheet1!$B$20=TRUE,$E29,a) -> -3.110778443 | N29: =IF(Sheet1!$B$20=TRUE,G29,0) -> 268.5361217 | O29: =IF(Sheet1!$B$22=TRUE,$E29,a) -> -3.5 | P29: =IF(Sheet1!$B$22=TRUE,H29,0) -> 0 | Q29: =IF(Sheet1!$B$24=TRUE,$E29,a) -> -3.110778443 | R29: =IF(Sheet1!$B$24=TRUE,I29,0) -> 651.9339166
E30: =E29+Sheet2!B$3 -> -3.10 | F30: -22.47729911 | G30: 260.1708768 | H30: -553.9500355 | I30: 645.6405751 | K30: =IF(Sheet1!$B$18=TRUE,E30,a) -> -3.095808383 | L30: =IF(Sheet1!$B$18=TRUE,F30,0) -> -22.47729911 | M30: =IF(Sheet1!$B$20=TRUE,$E30,a) -> -3.095808383 | N30: =IF(Sheet1!$B$20=TRUE,G30,0) -> 260.1708768 | O30: =IF(Sheet1!$B$22=TRUE,$E30,a) -> -3.5 | P30: =IF(Sheet1!$B$22=TRUE,H30,0) -> 0 | Q30: =IF(Sheet1!$B$24=TRUE,$E30,a) -> -3.095808383 | R30: =IF(Sheet1!$B$24=TRUE,I30,0) -> 645.6405751
E31: =E30+Sheet2!B$3 -> -3.08 | F31: -18.64423622 | G31: 251.9503221 | H31: -544.3316955 | I31: 639.374126 | K31: =IF(Sheet1!$B$18=TRUE,E31,a) -> -3.080838323 | L31: =IF(Sheet1!$B$18=TRUE,F31,0) -> -18.64423622 | M31: =IF(Sheet1!$B$20=TRUE,$E31,a) -> -3.080838323 | N31: =IF(Sheet1!$B$20=TRUE,G31,0) -> 251.9503221 | O31: =IF(Sheet1!$B$22=TRUE,$E31,a) -> -3.5 | P31: =IF(Sheet1!$B$22=TRUE,H31,0) -> 0 | Q31: =IF(Sheet1!$B$24=TRUE,$E31,a) -> -3.080838323 | R31: =IF(Sheet1!$B$24=TRUE,I31,0) -> 639.374126
E32: =E31+Sheet2!B$3 -> -3.07 | F32: -14.93316129 | G32: 243.8730535 | H32: -534.8069634 | I32: 633.1345692 | K32: =IF(Sheet1!$B$18=TRUE,E32,a) -> -3.065868263 | L32: =IF(Sheet1!$B$18=TRUE,F32,0) -> -14.93316129 | M32: =IF(Sheet1!$B$20=TRUE,$E32,a) -> -3.065868263 | N32: =IF(Sheet1!$B$20=TRUE,G32,0) -> 243.8730535 | O32: =IF(Sheet1!$B$22=TRUE,$E32,a) -> -3.5 | P32: =IF(Sheet1!$B$22=TRUE,H32,0) -> 0 | Q32: =IF(Sheet1!$B$24=TRUE,$E32,a) -> -3.065868263 | R32: =IF(Sheet1!$B$24=TRUE,I32,0) -> 633.1345692
E33: =E32+Sheet2!B$3 -> -3.05 | F33: -11.34193977 | G33: 235.9376725 | H33: -525.3754365 | I33: 626.9219047 | K33: =IF(Sheet1!$B$18=TRUE,E33,a) -> -3.050898204 | L33: =IF(Sheet1!$B$18=TRUE,F33,0) -> -11.34193977 | M33: =IF(Sheet1!$B$20=TRUE,$E33,a) -> -3.050898204 | N33: =IF(Sheet1!$B$20=TRUE,G33,0) -> 235.9376725 | O33: =IF(Sheet1!$B$22=TRUE,$E33,a) -> -3.5 | P33: =IF(Sheet1!$B$22=TRUE,H33,0) -> 0 | Q33: =IF(Sheet1!$B$24=TRUE,$E33,a) -> -3.050898204 | R33: =IF(Sheet1!$B$24=TRUE,I33,0) -> 626.9219047
E34: =E33+Sheet2!B$3 -> -3.04 | F34: -7.868458044 | G34: 228.1427869 | H34: -516.0367123 | I34: 620.7361325 | K34: =IF(Sheet1!$B$18=TRUE,E34,a) -> -3.035928144 | L34: =IF(Sheet1!$B$18=TRUE,F34,0) -> -7.868458044 | M34: =IF(Sheet1!$B$20=TRUE,$E34,a) -> -3.035928144 | N34: =IF(Sheet1!$B$20=TRUE,G34,0) -> 228.1427869 | O34: =IF(Sheet1!$B$22=TRUE,$E34,a) -> -3.5 | P34: =IF(Sheet1!$B$22=TRUE,H34,0) -> 0 | Q34: =IF(Sheet1!$B$24=TRUE,$E34,a) -> -3.035928144 | R34: =IF(Sheet1!$B$24=TRUE,I34,0) -> 620.7361325
E35: =E34+Sheet2!B$3 -> -3.02 | F35: -4.510623256 | G35: 220.4870105 | H35: -506.7903881 | I35: 614.5772527 | K35: =IF(Sheet1!$B$18=TRUE,E35,a) -> -3.020958084 | L35: =IF(Sheet1!$B$18=TRUE,F35,0) -> -4.510623256 | M35: =IF(Sheet1!$B$20=TRUE,$E35,a) -> -3.020958084 | N35: =IF(Sheet1!$B$20=TRUE,G35,0) -> 220.4870105 | O35: =IF(Sheet1!$B$22=TRUE,$E35,a) -> -3.5 | P35: =IF(Sheet1!$B$22=TRUE,H35,0) -> 0 | Q35: =IF(Sheet1!$B$24=TRUE,$E35,a) -> -3.020958084 | R35: =IF(Sheet1!$B$24=TRUE,I35,0) -> 614.5772527
E36: =E35+Sheet2!B$3 -> -3.01 | F36: -1.266363276 | G36: 212.9689629 | H36: -497.6360615 | I36: 608.4452652 | K36: =IF(Sheet1!$B$18=TRUE,E36,a) -> -3.005988024 | L36: =IF(Sheet1!$B$18=TRUE,F36,0) -> -1.266363276 | M36: =IF(Sheet1!$B$20=TRUE,$E36,a) -> -3.005988024 | N36: =IF(Sheet1!$B$20=TRUE,G36,0) -> 212.9689629 | O36: =IF(Sheet1!$B$22=TRUE,$E36,a) -> -3.5 | P36: =IF(Sheet1!$B$22=TRUE,H36,0) -> 0 | Q36: =IF(Sheet1!$B$24=TRUE,$E36,a) -> -3.005988024 | R36: =IF(Sheet1!$B$24=TRUE,I36,0) -> 608.4452652
E37: =E36+Sheet2!B$3 -> -2.99 | F37: 1.866373412 | G37: 205.5872701 | H37: -488.5733298 | I37: 602.34017 | K37: =IF(Sheet1!$B$18=TRUE,E37,a) -> -2.991017964 | L37: =IF(Sheet1!$B$18=TRUE,F37,0) -> 1.866373412 | M37: =IF(Sheet1!$B$20=TRUE,$E37,a) -> -2.991017964 | N37: =IF(Sheet1!$B$20=TRUE,G37,0) -> 205.5872701 | O37: =IF(Sheet1!$B$22=TRUE,$E37,a) -> -3.5 | P37: =IF(Sheet1!$B$22=TRUE,H37,0) -> 0 | Q37: =IF(Sheet1!$B$24=TRUE,$E37,a) -> -2.991017964 | R37: =IF(Sheet1!$B$24=TRUE,I37,0) -> 602.34017
E38: =E37+Sheet2!B$3 -> -2.98 | F38: 4.889617798 | G38: 198.3405639 | H38: -479.6017905 | I38: 596.2619671 | K38: =IF(Sheet1!$B$18=TRUE,E38,a) -> -2.976047904 | L38: =IF(Sheet1!$B$18=TRUE,F38,0) -> 4.889617798 | M38: =IF(Sheet1!$B$20=TRUE,$E38,a) -> -2.976047904 | N38: =IF(Sheet1!$B$20=TRUE,G38,0) -> 198.3405639 | O38: =IF(Sheet1!$B$22=TRUE,$E38,a) -> -3.5 | P38: =IF(Sheet1!$B$22=TRUE,H38,0) -> 0 | Q38: =IF(Sheet1!$B$24=TRUE,$E38,a) -> -2.976047904 | R38: =IF(Sheet1!$B$24=TRUE,I38,0) -> 596.2619671
E39: =E38+Sheet2!B$3 -> -2.96 | F39: 7.805380435 | G39: 191.227482 | H39: -470.7210409 | I39: 590.2106565 | K39: =IF(Sheet1!$B$18=TRUE,E39,a) -> -2.961077844 | L39: =IF(Sheet1!$B$18=TRUE,F39,0) -> 7.805380435 | M39: =IF(Sheet1!$B$20=TRUE,$E39,a) -> -2.961077844 | N39: =IF(Sheet1!$B$20=TRUE,G39,0) -> 191.227482 | O39: =IF(Sheet1!$B$22=TRUE,$E39,a) -> -3.5 | P39: =IF(Sheet1!$B$22=TRUE,H39,0) -> 0 | Q39: =IF(Sheet1!$B$24=TRUE,$E39,a) -> -2.961077844 | R39: =IF(Sheet1!$B$24=TRUE,I39,0) -> 590.2106565
E40: =E39+Sheet2!B$3 -> -2.95 | F40: 10.61565153 | G40: 184.2466685 | H40: -461.9306786 | I40: 584.1862383 | K40: =IF(Sheet1!$B$18=TRUE,E40,a) -> -2.946107784 | L40: =IF(Sheet1!$B$18=TRUE,F40,0) -> 10.61565153 | M40: =IF(Sheet1!$B$20=TRUE,$E40,a) -> -2.946107784 | N40: =IF(Sheet1!$B$20=TRUE,G40,0) -> 184.2466685 | O40: =IF(Sheet1!$B$22=TRUE,$E40,a) -> -3.5 | P40: =IF(Sheet1!$B$22=TRUE,H40,0) -> 0 | Q40: =IF(Sheet1!$B$24=TRUE,$E40,a) -> -2.946107784 | R40: =IF(Sheet1!$B$24=TRUE,I40,0) -> 584.1862383
E41: =E40+Sheet2!B$3 -> -2.93 | F41: 13.32240104 | G41: 177.3967732 | H41: -453.2303008 | I41: 578.1887124 | K41: =IF(Sheet1!$B$18=TRUE,E41,a) -> -2.931137725 | L41: =IF(Sheet1!$B$18=TRUE,F41,0) -> 13.32240104 | M41: =IF(Sheet1!$B$20=TRUE,$E41,a) -> -2.931137725 | N41: =IF(Sheet1!$B$20=TRUE,G41,0) -> 177.3967732 | O41: =IF(Sheet1!$B$22=TRUE,$E41,a) -> -3.5 | P41: =IF(Sheet1!$B$22=TRUE,H41,0) -> 0 | Q41: =IF(Sheet1!$B$24=TRUE,$E41,a) -> -2.931137725 | R41: =IF(Sheet1!$B$24=TRUE,I41,0) -> 578.1887124
E42: =E41+Sheet2!B$3 -> -2.92 | F42: 15.92757874 | G42: 170.676452 | H42: -444.6195051 | I42: 572.2180788 | K42: =IF(Sheet1!$B$18=TRUE,E42,a) -> -2.916167665 | L42: =IF(Sheet1!$B$18=TRUE,F42,0) -> 15.92757874 | M42: =IF(Sheet1!$B$20=TRUE,$E42,a) -> -2.916167665 | N42: =IF(Sheet1!$B$20=TRUE,G42,0) -> 170.676452 | O42: =IF(Sheet1!$B$22=TRUE,$E42,a) -> -3.5 | P42: =IF(Sheet1!$B$22=TRUE,H42,0) -> 0 | Q42: =IF(Sheet1!$B$24=TRUE,$E42,a) -> -2.916167665 | R42: =IF(Sheet1!$B$24=TRUE,I42,0) -> 572.2180788
E43: =E42+Sheet2!B$3 -> -2.90 | F43: 18.43311435 | G43: 164.0843669 | H43: -436.0978888 | I43: 566.2743376 | K43: =IF(Sheet1!$B$18=TRUE,E43,a) -> -2.901197605 | L43: =IF(Sheet1!$B$18=TRUE,F43,0) -> 18.43311435 | M43: =IF(Sheet1!$B$20=TRUE,$E43,a) -> -2.901197605 | N43: =IF(Sheet1!$B$20=TRUE,G43,0) -> 164.0843669 | O43: =IF(Sheet1!$B$22=TRUE,$E43,a) -> -3.5 | P43: =IF(Sheet1!$B$22=TRUE,H43,0) -> 0 | Q43: =IF(Sheet1!$B$24=TRUE,$E43,a) -> -2.901197605 | R43: =IF(Sheet1!$B$24=TRUE,I43,0) -> 566.2743376
E44: =E43+Sheet2!B$3 -> -2.89 | F44: 20.84091759 | G44: 157.619186 | H44: -427.6650494 | I44: 560.3574886 | K44: =IF(Sheet1!$B$18=TRUE,E44,a) -> -2.886227545 | L44: =IF(Sheet1!$B$18=TRUE,F44,0) -> 20.84091759 | M44: =IF(Sheet1!$B$20=TRUE,$E44,a) -> -2.886227545 | N44: =IF(Sheet1!$B$20=TRUE,G44,0) -> 157.619186 | O44: =IF(Sheet1!$B$22=TRUE,$E44,a) -> -3.5 | P44: =IF(Sheet1!$B$22=TRUE,H44,0) -> 0 | Q44: =IF(Sheet1!$B$24=TRUE,$E44,a) -> -2.886227545 | R44: =IF(Sheet1!$B$24=TRUE,I44,0) -> 560.3574886
E45: =E44+Sheet2!B$3 -> -2.87 | F45: 23.15287829 | G45: 151.2795832 | H45: -419.3205843 | I45: 554.467532 | K45: =IF(Sheet1!$B$18=TRUE,E45,a) -> -2.871257485 | L45: =IF(Sheet1!$B$18=TRUE,F45,0) -> 23.15287829 | M45: =IF(Sheet1!$B$20=TRUE,$E45,a) -> -2.871257485 | N45: =IF(Sheet1!$B$20=TRUE,G45,0) -> 151.2795832 | O45: =IF(Sheet1!$B$22=TRUE,$E45,a) -> -3.5 | P45: =IF(Sheet1!$B$22=TRUE,H45,0) -> 0 | Q45: =IF(Sheet1!$B$24=TRUE,$E45,a) -> -2.871257485 | R45: =IF(Sheet1!$B$24=TRUE,I45,0) -> 554.467532
E46: =E45+Sheet2!B$3 -> -2.86 | F46: 25.37086648 | G46: 145.0642385 | H46: -411.0640909 | I46: 548.6044677 | K46: =IF(Sheet1!$B$18=TRUE,E46,a) -> -2.856287425 | L46: =IF(Sheet1!$B$18=TRUE,F46,0) -> 25.37086648 | M46: =IF(Sheet1!$B$20=TRUE,$E46,a) -> -2.856287425 | N46: =IF(Sheet1!$B$20=TRUE,G46,0) -> 145.0642385 | O46: =IF(Sheet1!$B$22=TRUE,$E46,a) -> -3.5 | P46: =IF(Sheet1!$B$22=TRUE,H46,0) -> 0 | Q46: =IF(Sheet1!$B$24=TRUE,$E46,a) -> -2.856287425 | R46: =IF(Sheet1!$B$24=TRUE,I46,0) -> 548.6044677
E47: =E46+Sheet2!B$3 -> -2.84 | F47: 27.49673246 | G47: 138.9718381 | H47: -402.8951666 | I47: 542.7682957 | K47: =IF(Sheet1!$B$18=TRUE,E47,a) -> -2.841317365 | L47: =IF(Sheet1!$B$18=TRUE,F47,0) -> 27.49673246 | M47: =IF(Sheet1!$B$20=TRUE,$E47,a) -> -2.841317365 | N47: =IF(Sheet1!$B$20=TRUE,G47,0) -> 138.9718381 | O47: =IF(Sheet1!$B$22=TRUE,$E47,a) -> -3.5 | P47: =IF(Sheet1!$B$22=TRUE,H47,0) -> 0 | Q47: =IF(Sheet1!$B$24=TRUE,$E47,a) -> -2.841317365 | R47: =IF(Sheet1!$B$24=TRUE,I47,0) -> 542.7682957
E48: =E47+Sheet2!B$3 -> -2.83 | F48: 29.53230692 | G48: 133.001074 | H48: -394.8134089 | I48: 536.9590161 | K48: =IF(Sheet1!$B$18=TRUE,E48,a) -> -2.826347305 | L48: =IF(Sheet1!$B$18=TRUE,F48,0) -> 29.53230692 | M48: =IF(Sheet1!$B$20=TRUE,$E48,a) -> -2.826347305 | N48: =IF(Sheet1!$B$20=TRUE,G48,0) -> 133.001074 | O48: =IF(Sheet1!$B$22=TRUE,$E48,a) -> -3.5 | P48: =IF(Sheet1!$B$22=TRUE,H48,0) -> 0 | Q48: =IF(Sheet1!$B$24=TRUE,$E48,a) -> -2.826347305 | R48: =IF(Sheet1!$B$24=TRUE,I48,0) -> 536.9590161
E49: =E48+Sheet2!B$3 -> -2.81 | F49: 31.47940101 | G49: 127.1506444 | H49: -386.8184152 | I49: 531.1766288 | K49: =IF(Sheet1!$B$18=TRUE,E49,a) -> -2.811377246 | L49: =IF(Sheet1!$B$18=TRUE,F49,0) -> 31.47940101 | M49: =IF(Sheet1!$B$20=TRUE,$E49,a) -> -2.811377246 | N49: =IF(Sheet1!$B$20=TRUE,G49,0) -> 127.1506444 | O49: =IF(Sheet1!$B$22=TRUE,$E49,a) -> -3.5 | P49: =IF(Sheet1!$B$22=TRUE,H49,0) -> 0 | Q49: =IF(Sheet1!$B$24=TRUE,$E49,a) -> -2.811377246 | R49: =IF(Sheet1!$B$24=TRUE,I49,0) -> 531.1766288
E50: =E49+Sheet2!B$3 -> -2.80 | F50: 33.33980645 | G50: 121.4192534 | H50: -378.9097829 | I50: 525.4211338 | K50: =IF(Sheet1!$B$18=TRUE,E50,a) -> -2.796407186 | L50: =IF(Sheet1!$B$18=TRUE,F50,0) -> 33.33980645 | M50: =IF(Sheet1!$B$20=TRUE,$E50,a) -> -2.796407186 | N50: =IF(Sheet1!$B$20=TRUE,G50,0) -> 121.4192534 | O50: =IF(Sheet1!$B$22=TRUE,$E50,a) -> -3.5 | P50: =IF(Sheet1!$B$22=TRUE,H50,0) -> 0 | Q50: =IF(Sheet1!$B$24=TRUE,$E50,a) -> -2.796407186 | R50: =IF(Sheet1!$B$24=TRUE,I50,0) -> 525.4211338
E51: =E50+Sheet2!B$3 -> -2.78 | F51: 35.11529557 | G51: 115.8056112 | H51: -371.0871093 | I51: 519.6925311 | K51: =IF(Sheet1!$B$18=TRUE,E51,a) -> -2.781437126 | L51: =IF(Sheet1!$B$18=TRUE,F51,0) -> 35.11529557 | M51: =IF(Sheet1!$B$20=TRUE,$E51,a) -> -2.781437126 | N51: =IF(Sheet1!$B$20=TRUE,G51,0) -> 115.8056112 | O51: =IF(Sheet1!$B$22=TRUE,$E51,a) -> -3.5 | P51: =IF(Sheet1!$B$22=TRUE,H51,0) -> 0 | Q51: =IF(Sheet1!$B$24=TRUE,$E51,a) -> -2.781437126 | R51: =IF(Sheet1!$B$24=TRUE,I51,0) -> 519.6925311
E52: =E51+Sheet2!B$3 -> -2.77 | F52: 36.80762147 | G52: 110.3084339 | H52: -363.349992 | I52: 513.9908208 | K52: =IF(Sheet1!$B$18=TRUE,E52,a) -> -2.766467066 | L52: =IF(Sheet1!$B$18=TRUE,F52,0) -> 36.80762147 | M52: =IF(Sheet1!$B$20=TRUE,$E52,a) -> -2.766467066 | N52: =IF(Sheet1!$B$20=TRUE,G52,0) -> 110.3084339 | O52: =IF(Sheet1!$B$22=TRUE,$E52,a) -> -3.5 | P52: =IF(Sheet1!$B$22=TRUE,H52,0) -> 0 | Q52: =IF(Sheet1!$B$24=TRUE,$E52,a) -> -2.766467066 | R52: =IF(Sheet1!$B$24=TRUE,I52,0) -> 513.9908208
E53: =E52+Sheet2!B$3 -> -2.75 | F53: 38.41851808 | G53: 104.926444 | H53: -355.6980284 | I53: 508.3160027 | K53: =IF(Sheet1!$B$18=TRUE,E53,a) -> -2.751497006 | L53: =IF(Sheet1!$B$18=TRUE,F53,0) -> 38.41851808 | M53: =IF(Sheet1!$B$20=TRUE,$E53,a) -> -2.751497006 | N53: =IF(Sheet1!$B$20=TRUE,G53,0) -> 104.926444 | O53: =IF(Sheet1!$B$22=TRUE,$E53,a) -> -3.5 | P53: =IF(Sheet1!$B$22=TRUE,H53,0) -> 0 | Q53: =IF(Sheet1!$B$24=TRUE,$E53,a) -> -2.751497006 | R53: =IF(Sheet1!$B$24=TRUE,I53,0) -> 508.3160027
E54: =E53+Sheet2!B$3 -> -2.74 | F54: 39.94970021 | G54: 99.65836947 | H54: -348.1308159 | I54: 502.668077 | K54: =IF(Sheet1!$B$18=TRUE,E54,a) -> -2.736526946 | L54: =IF(Sheet1!$B$18=TRUE,F54,0) -> 39.94970021 | M54: =IF(Sheet1!$B$20=TRUE,$E54,a) -> -2.736526946 | N54: =IF(Sheet1!$B$20=TRUE,G54,0) -> 99.65836947 | O54: =IF(Sheet1!$B$22=TRUE,$E54,a) -> -3.5 | P54: =IF(Sheet1!$B$22=TRUE,H54,0) -> 0 | Q54: =IF(Sheet1!$B$24=TRUE,$E54,a) -> -2.736526946 | R54: =IF(Sheet1!$B$24=TRUE,I54,0) -> 502.668077
E55: =E54+Sheet2!B$3 -> -2.72 | F55: 41.40286372 | G55: 94.50294475 | H55: -340.6479518 | I55: 497.0470436 | K55: =IF(Sheet1!$B$18=TRUE,E55,a) -> -2.721556886 | L55: =IF(Sheet1!$B$18=TRUE,F55,0) -> 41.40286372 | M55: =IF(Sheet1!$B$20=TRUE,$E55,a) -> -2.721556886 | N55: =IF(Sheet1!$B$20=TRUE,G55,0) -> 94.50294475 | O55: =IF(Sheet1!$B$22=TRUE,$E55,a) -> -3.5 | P55: =IF(Sheet1!$B$22=TRUE,H55,0) -> 0 | Q55: =IF(Sheet1!$B$24=TRUE,$E55,a) -> -2.721556886 | R55: =IF(Sheet1!$B$24=TRUE,I55,0) -> 497.0470436
E56: =E55+Sheet2!B$3 -> -2.71 | F56: 42.77968553 | G56: 89.4589101 | H56: -333.2490336 | I56: 491.4529026 | K56: =IF(Sheet1!$B$18=TRUE,E56,a) -> -2.706586826 | L56: =IF(Sheet1!$B$18=TRUE,F56,0) -> 42.77968553 | M56: =IF(Sheet1!$B$20=TRUE,$E56,a) -> -2.706586826 | N56: =IF(Sheet1!$B$20=TRUE,G56,0) -> 89.4589101 | O56: =IF(Sheet1!$B$22=TRUE,$E56,a) -> -3.5 | P56: =IF(Sheet1!$B$22=TRUE,H56,0) -> 0 | Q56: =IF(Sheet1!$B$24=TRUE,$E56,a) -> -2.706586826 | R56: =IF(Sheet1!$B$24=TRUE,I56,0) -> 491.4529026
E57: =E56+Sheet2!B$3 -> -2.69 | F57: 44.08182378 | G57: 84.52501188 | H57: -325.9336588 | I57: 485.8856538 | K57: =IF(Sheet1!$B$18=TRUE,E57,a) -> -2.691616766 | L57: =IF(Sheet1!$B$18=TRUE,F57,0) -> 44.08182378 | M57: =IF(Sheet1!$B$20=TRUE,$E57,a) -> -2.691616766 | N57: =IF(Sheet1!$B$20=TRUE,G57,0) -> 84.52501188 | O57: =IF(Sheet1!$B$22=TRUE,$E57,a) -> -3.5 | P57: =IF(Sheet1!$B$22=TRUE,H57,0) -> 0 | Q57: =IF(Sheet1!$B$24=TRUE,$E57,a) -> -2.691616766 | R57: =IF(Sheet1!$B$24=TRUE,I57,0) -> 485.8856538
E58: =E57+Sheet2!B$3 -> -2.68 | F58: 45.31091787 | G58: 79.70000245 | H58: -318.7014248 | I58: 480.3452974 | K58: =IF(Sheet1!$B$18=TRUE,E58,a) -> -2.676646707 | L58: =IF(Sheet1!$B$18=TRUE,F58,0) -> 45.31091787 | M58: =IF(Sheet1!$B$20=TRUE,$E58,a) -> -2.676646707 | N58: =IF(Sheet1!$B$20=TRUE,G58,0) -> 79.70000245 | O58: =IF(Sheet1!$B$22=TRUE,$E58,a) -> -3.5 | P58: =IF(Sheet1!$B$22=TRUE,H58,0) -> 0 | Q58: =IF(Sheet1!$B$24=TRUE,$E58,a) -> -2.676646707 | R58: =IF(Sheet1!$B$24=TRUE,I58,0) -> 480.3452974
E59: =E58+Sheet2!B$3 -> -2.66 | F59: 46.46858856 | G59: 74.98264019 | H59: -311.5519289 | I59: 474.8318333 | K59: =IF(Sheet1!$B$18=TRUE,E59,a) -> -2.661676647 | L59: =IF(Sheet1!$B$18=TRUE,F59,0) -> 46.46858856 | M59: =IF(Sheet1!$B$20=TRUE,$E59,a) -> -2.661676647 | N59: =IF(Sheet1!$B$20=TRUE,G59,0) -> 74.98264019 | O59: =IF(Sheet1!$B$22=TRUE,$E59,a) -> -3.5 | P59: =IF(Sheet1!$B$22=TRUE,H59,0) -> 0 | Q59: =IF(Sheet1!$B$24=TRUE,$E59,a) -> -2.661676647 | R59: =IF(Sheet1!$B$24=TRUE,I59,0) -> 474.8318333
E60: =E59+Sheet2!B$3 -> -2.65 | F60: 47.55643809 | G60: 70.37168953 | H60: -304.4847686 | I60: 469.3452616 | K60: =IF(Sheet1!$B$18=TRUE,E60,a) -> -2.646706587 | L60: =IF(Sheet1!$B$18=TRUE,F60,0) -> 47.55643809 | M60: =IF(Sheet1!$B$20=TRUE,$E60,a) -> -2.646706587 | N60: =IF(Sheet1!$B$20=TRUE,G60,0) -> 70.37168953 | O60: =IF(Sheet1!$B$22=TRUE,$E60,a) -> -3.5 | P60: =IF(Sheet1!$B$22=TRUE,H60,0) -> 0 | Q60: =IF(Sheet1!$B$24=TRUE,$E60,a) -> -2.646706587 | R60: =IF(Sheet1!$B$24=TRUE,I60,0) -> 469.3452616
E61: =E60+Sheet2!B$3 -> -2.63 | F61: 48.57605023 | G61: 65.86592091 | H61: -297.4995414 | I61: 463.8855821 | K61: =IF(Sheet1!$B$18=TRUE,E61,a) -> -2.631736527 | L61: =IF(Sheet1!$B$18=TRUE,F61,0) -> 48.57605023 | M61: =IF(Sheet1!$B$20=TRUE,$E61,a) -> -2.631736527 | N61: =IF(Sheet1!$B$20=TRUE,G61,0) -> 65.86592091 | O61: =IF(Sheet1!$B$22=TRUE,$E61,a) -> -3.5 | P61: =IF(Sheet1!$B$22=TRUE,H61,0) -> 0 | Q61: =IF(Sheet1!$B$24=TRUE,$E61,a) -> -2.631736527 | R61: =IF(Sheet1!$B$24=TRUE,I61,0) -> 463.8855821
E62: =E61+Sheet2!B$3 -> -2.62 | F62: 49.5289904 | G62: 61.4641108 | H62: -290.5958446 | I62: 458.452795 | K62: =IF(Sheet1!$B$18=TRUE,E62,a) -> -2.616766467 | L62: =IF(Sheet1!$B$18=TRUE,F62,0) -> 49.5289904 | M62: =IF(Sheet1!$B$20=TRUE,$E62,a) -> -2.616766467 | N62: =IF(Sheet1!$B$20=TRUE,G62,0) -> 61.4641108 | O62: =IF(Sheet1!$B$22=TRUE,$E62,a) -> -3.5 | P62: =IF(Sheet1!$B$22=TRUE,H62,0) -> 0 | Q62: =IF(Sheet1!$B$24=TRUE,$E62,a) -> -2.616766467 | R62: =IF(Sheet1!$B$24=TRUE,I62,0) -> 458.452795
E63: =E62+Sheet2!B$3 -> -2.60 | F63: 50.41680575 | G63: 57.16504169 | H63: -283.7732756 | I63: 453.0469002 | K63: =IF(Sheet1!$B$18=TRUE,E63,a) -> -2.601796407 | L63: =IF(Sheet1!$B$18=TRUE,F63,0) -> 50.41680575 | M63: =IF(Sheet1!$B$20=TRUE,$E63,a) -> -2.601796407 | N63: =IF(Sheet1!$B$20=TRUE,G63,0) -> 57.16504169 | O63: =IF(Sheet1!$B$22=TRUE,$E63,a) -> -3.5 | P63: =IF(Sheet1!$B$22=TRUE,H63,0) -> 0 | Q63: =IF(Sheet1!$B$24=TRUE,$E63,a) -> -2.601796407 | R63: =IF(Sheet1!$B$24=TRUE,I63,0) -> 453.0469002
E64: =E63+Sheet2!B$3 -> -2.59 | F64: 51.24102523 | G64: 52.96750212 | H64: -277.0314319 | I64: 447.6678977 | K64: =IF(Sheet1!$B$18=TRUE,E64,a) -> -2.586826347 | L64: =IF(Sheet1!$B$18=TRUE,F64,0) -> 51.24102523 | M64: =IF(Sheet1!$B$20=TRUE,$E64,a) -> -2.586826347 | N64: =IF(Sheet1!$B$20=TRUE,G64,0) -> 52.96750212 | O64: =IF(Sheet1!$B$22=TRUE,$E64,a) -> -3.5 | P64: =IF(Sheet1!$B$22=TRUE,H64,0) -> 0 | Q64: =IF(Sheet1!$B$24=TRUE,$E64,a) -> -2.586826347 | R64: =IF(Sheet1!$B$24=TRUE,I64,0) -> 447.6678977
E65: =E64+Sheet2!B$3 -> -2.57 | F65: 52.00315973 | G65: 48.87028663 | H65: -270.3699109 | I65: 442.3157876 | K65: =IF(Sheet1!$B$18=TRUE,E65,a) -> -2.571856287 | L65: =IF(Sheet1!$B$18=TRUE,F65,0) -> 52.00315973 | M65: =IF(Sheet1!$B$20=TRUE,$E65,a) -> -2.571856287 | N65: =IF(Sheet1!$B$20=TRUE,G65,0) -> 48.87028663 | O65: =IF(Sheet1!$B$22=TRUE,$E65,a) -> -3.5 | P65: =IF(Sheet1!$B$22=TRUE,H65,0) -> 0 | Q65: =IF(Sheet1!$B$24=TRUE,$E65,a) -> -2.571856287 | R65: =IF(Sheet1!$B$24=TRUE,I65,0) -> 442.3157876
E66: =E65+Sheet2!B$3 -> -2.56 | F66: 52.7047021 | G66: 44.8721958 | H66: -263.7883101 | I66: 436.9905698 | K66: =IF(Sheet1!$B$18=TRUE,E66,a) -> -2.556886228 | L66: =IF(Sheet1!$B$18=TRUE,F66,0) -> 52.7047021 | M66: =IF(Sheet1!$B$20=TRUE,$E66,a) -> -2.556886228 | N66: =IF(Sheet1!$B$20=TRUE,G66,0) -> 44.8721958 | O66: =IF(Sheet1!$B$22=TRUE,$E66,a) -> -3.5 | P66: =IF(Sheet1!$B$22=TRUE,H66,0) -> 0 | Q66: =IF(Sheet1!$B$24=TRUE,$E66,a) -> -2.556886228 | R66: =IF(Sheet1!$B$24=TRUE,I66,0) -> 436.9905698
E67: =E66+Sheet2!B$3 -> -2.54 | F67: 53.34712732 | G67: 40.97203624 | H67: -257.2862268 | I67: 431.6922443 | K67: =IF(Sheet1!$B$18=TRUE,E67,a) -> -2.541916168 | L67: =IF(Sheet1!$B$18=TRUE,F67,0) -> 53.34712732 | M67: =IF(Sheet1!$B$20=TRUE,$E67,a) -> -2.541916168 | N67: =IF(Sheet1!$B$20=TRUE,G67,0) -> 40.97203624 | O67: =IF(Sheet1!$B$22=TRUE,$E67,a) -> -3.5 | P67: =IF(Sheet1!$B$22=TRUE,H67,0) -> 0 | Q67: =IF(Sheet1!$B$24=TRUE,$E67,a) -> -2.541916168 | R67: =IF(Sheet1!$B$24=TRUE,I67,0) -> 431.6922443
E68: =E67+Sheet2!B$3 -> -2.53 | F68: =E68^5-2*E68^4-13*E68^3+14*E68^2+24*E68 -> 53.93189252 | G68: =5*E68^4-8*E68^3-39*E68^2+28*E68+24 -> 37.16862058 | H68: =20*E68^3-24*E68^2-78*E68+28 -> -250.8632584 | I68: =60*E68^2-48*E68-78 -> 426.4208111 | K68: =IF(Sheet1!$B$18=TRUE,E68,a) -> -2.526946108 | L68: =IF(Sheet1!$B$18=TRUE,F68,0) -> 53.93189252 | M68: =IF(Sheet1!$B$20=TRUE,$E68,a) -> -2.526946108 | N68: =IF(Sheet1!$B$20=TRUE,G68,0) -> 37.16862058 | O68: =IF(Sheet1!$B$22=TRUE,$E68,a) -> -3.5 | P68: =IF(Sheet1!$B$22=TRUE,H68,0) -> 0 | Q68: =IF(Sheet1!$B$24=TRUE,$E68,a) -> -2.526946108 | R68: =IF(Sheet1!$B$24=TRUE,I68,0) -> 426.4208111
E69: =E68+Sheet2!B$3 -> -2.51 | F69: 54.46043713 | G69: 33.46076746 | H69: -244.5190024 | I69: 421.1762702 | K69: =IF(Sheet1!$B$18=TRUE,E69,a) -> -2.511976048 | L69: =IF(Sheet1!$B$18=TRUE,F69,0) -> 54.46043713 | M69: =IF(Sheet1!$B$20=TRUE,$E69,a) -> -2.511976048 | N69: =IF(Sheet1!$B$20=TRUE,G69,0) -> 33.46076746 | O69: =IF(Sheet1!$B$22=TRUE,$E69,a) -> -3.5 | P69: =IF(Sheet1!$B$22=TRUE,H69,0) -> 0 | Q69: =IF(Sheet1!$B$24=TRUE,$E69,a) -> -2.511976048 | R69: =IF(Sheet1!$B$24=TRUE,I69,0) -> 421.1762702
E70: =E69+Sheet2!B$3 -> -2.50 | F70: 54.9341829 | G70: 29.84730159 | H70: -238.2530562 | I70: 415.9586217 | K70: =IF(Sheet1!$B$18=TRUE,E70,a) -> -2.497005988 | L70: =IF(Sheet1!$B$18=TRUE,F70,0) -> 54.9341829 | M70: =IF(Sheet1!$B$20=TRUE,$E70,a) -> -2.497005988 | N70: =IF(Sheet1!$B$20=TRUE,G70,0) -> 29.84730159 | O70: =IF(Sheet1!$B$22=TRUE,$E70,a) -> -3.5 | P70: =IF(Sheet1!$B$22=TRUE,H70,0) -> 0 | Q70: =IF(Sheet1!$B$24=TRUE,$E70,a) -> -2.497005988 | R70: =IF(Sheet1!$B$24=TRUE,I70,0) -> 415.9586217
E71: =E70+Sheet2!B$3 -> -2.48 | F71: 55.35453407 | G71: 26.32705367 | H71: -232.0650173 | I71: 410.7678655 | K71: =IF(Sheet1!$B$18=TRUE,E71,a) -> -2.482035928 | L71: =IF(Sheet1!$B$18=TRUE,F71,0) -> 55.35453407 | M71: =IF(Sheet1!$B$20=TRUE,$E71,a) -> -2.482035928 | N71: =IF(Sheet1!$B$20=TRUE,G71,0) -> 26.32705367 | O71: =IF(Sheet1!$B$22=TRUE,$E71,a) -> -3.5 | P71: =IF(Sheet1!$B$22=TRUE,H71,0) -> 0 | Q71: =IF(Sheet1!$B$24=TRUE,$E71,a) -> -2.482035928 | R71: =IF(Sheet1!$B$24=TRUE,I71,0) -> 410.7678655
E72: =E71+Sheet2!B$3 -> -2.47 | F72: 55.7228774 | G72: 22.89886043 | H72: -225.9544829 | I72: 405.6040016 | K72: =IF(Sheet1!$B$18=TRUE,E72,a) -> -2.467065868 | L72: =IF(Sheet1!$B$18=TRUE,F72,0) -> 55.7228774 | M72: =IF(Sheet1!$B$20=TRUE,$E72,a) -> -2.467065868 | N72: =IF(Sheet1!$B$20=TRUE,G72,0) -> 22.89886043 | O72: =IF(Sheet1!$B$22=TRUE,$E72,a) -> -3.5 | P72: =IF(Sheet1!$B$22=TRUE,H72,0) -> 0 | Q72: =IF(Sheet1!$B$24=TRUE,$E72,a) -> -2.467065868 | R72: =IF(Sheet1!$B$24=TRUE,I72,0) -> 405.6040016
E73: =E72+Sheet2!B$3 -> -2.45 | F73: 56.04058227 | G73: 19.56156465 | H73: -219.9210507 | I73: 400.46703 | K73: =IF(Sheet1!$B$18=TRUE,E73,a) -> -2.452095808 | L73: =IF(Sheet1!$B$18=TRUE,F73,0) -> 56.04058227 | M73: =IF(Sheet1!$B$20=TRUE,$E73,a) -> -2.452095808 | N73: =IF(Sheet1!$B$20=TRUE,G73,0) -> 19.56156465 | O73: =IF(Sheet1!$B$22=TRUE,$E73,a) -> -3.5 | P73: =IF(Sheet1!$B$22=TRUE,H73,0) -> 0 | Q73: =IF(Sheet1!$B$24=TRUE,$E73,a) -> -2.452095808 | R73: =IF(Sheet1!$B$24=TRUE,I73,0) -> 400.46703
E74: =E73+Sheet2!B$3 -> -2.44 | F74: 56.30900082 | G74: 16.31401511 | H74: -213.9643179 | I74: 395.3569508 | K74: =IF(Sheet1!$B$18=TRUE,E74,a) -> -2.437125749 | L74: =IF(Sheet1!$B$18=TRUE,F74,0) -> 56.30900082 | M74: =IF(Sheet1!$B$20=TRUE,$E74,a) -> -2.437125749 | N74: =IF(Sheet1!$B$20=TRUE,G74,0) -> 16.31401511 | O74: =IF(Sheet1!$B$22=TRUE,$E74,a) -> -3.5 | P74: =IF(Sheet1!$B$22=TRUE,H74,0) -> 0 | Q74: =IF(Sheet1!$B$24=TRUE,$E74,a) -> -2.437125749 | R74: =IF(Sheet1!$B$24=TRUE,I74,0) -> 395.3569508
E75: =E74+Sheet2!B$3 -> -2.42 | F75: 56.52946796 | G75: 13.15506662 | H75: -208.083882 | I75: 390.2737638 | K75: =IF(Sheet1!$B$18=TRUE,E75,a) -> -2.422155689 | L75: =IF(Sheet1!$B$18=TRUE,F75,0) -> 56.52946796 | M75: =IF(Sheet1!$B$20=TRUE,$E75,a) -> -2.422155689 | N75: =IF(Sheet1!$B$20=TRUE,G75,0) -> 13.15506662 | O75: =IF(Sheet1!$B$22=TRUE,$E75,a) -> -3.5 | P75: =IF(Sheet1!$B$22=TRUE,H75,0) -> 0 | Q75: =IF(Sheet1!$B$24=TRUE,$E75,a) -> -2.422155689 | R75: =IF(Sheet1!$B$24=TRUE,I75,0) -> 390.2737638
E76: =E75+Sheet2!B$3 -> -2.41 | F76: 56.70330153 | G76: 10.08358004 | H76: -202.2793405 | I76: 385.2174693 | K76: =IF(Sheet1!$B$18=TRUE,E76,a) -> -2.407185629 | L76: =IF(Sheet1!$B$18=TRUE,F76,0) -> 56.70330153 | M76: =IF(Sheet1!$B$20=TRUE,$E76,a) -> -2.407185629 | N76: =IF(Sheet1!$B$20=TRUE,G76,0) -> 10.08358004 | O76: =IF(Sheet1!$B$22=TRUE,$E76,a) -> -3.5 | P76: =IF(Sheet1!$B$22=TRUE,H76,0) -> 0 | Q76: =IF(Sheet1!$B$24=TRUE,$E76,a) -> -2.407185629 | R76: =IF(Sheet1!$B$24=TRUE,I76,0) -> 385.2174693
E77: =E76+Sheet2!B$3 -> -2.39 | F77: 56.83180234 | G77: 7.098422238 | H77: -196.5502907 | I77: 380.188067 | K77: =IF(Sheet1!$B$18=TRUE,E77,a) -> -2.392215569 | L77: =IF(Sheet1!$B$18=TRUE,F77,0) -> 56.83180234 | M77: =IF(Sheet1!$B$20=TRUE,$E77,a) -> -2.392215569 | N77: =IF(Sheet1!$B$20=TRUE,G77,0) -> 7.098422238 | O77: =IF(Sheet1!$B$22=TRUE,$E77,a) -> -3.5 | P77: =IF(Sheet1!$B$22=TRUE,H77,0) -> 0 | Q77: =IF(Sheet1!$B$24=TRUE,$E77,a) -> -2.392215569 | R77: =IF(Sheet1!$B$24=TRUE,I77,0) -> 380.188067
E78: =E77+Sheet2!B$3 -> -2.38 | F78: 56.91625429 | G78: 4.198466105 | H78: -190.89633 | I78: 375.185557 | K78: =IF(Sheet1!$B$18=TRUE,E78,a) -> -2.377245509 | L78: =IF(Sheet1!$B$18=TRUE,F78,0) -> 56.91625429 | M78: =IF(Sheet1!$B$20=TRUE,$E78,a) -> -2.377245509 | N78: =IF(Sheet1!$B$20=TRUE,G78,0) -> 4.198466105 | O78: =IF(Sheet1!$B$22=TRUE,$E78,a) -> -3.5 | P78: =IF(Sheet1!$B$22=TRUE,H78,0) -> 0 | Q78: =IF(Sheet1!$B$24=TRUE,$E78,a) -> -2.377245509 | R78: =IF(Sheet1!$B$24=TRUE,I78,0) -> 375.185557
E79: =E78+Sheet2!B$3 -> -2.36 | F79: 56.95792448 | G79: 1.382590567 | H79: -185.317056 | I79: 370.2099394 | K79: =IF(Sheet1!$B$18=TRUE,E79,a) -> -2.362275449 | L79: =IF(Sheet1!$B$18=TRUE,F79,0) -> 56.95792448 | M79: =IF(Sheet1!$B$20=TRUE,$E79,a) -> -2.362275449 | N79: =IF(Sheet1!$B$20=TRUE,G79,0) -> 1.382590567 | O79: =IF(Sheet1!$B$22=TRUE,$E79,a) -> -3.5 | P79: =IF(Sheet1!$B$22=TRUE,H79,0) -> 0 | Q79: =IF(Sheet1!$B$24=TRUE,$E79,a) -> -2.362275449 | R79: =IF(Sheet1!$B$24=TRUE,I79,0) -> 370.2099394
E80: =E79+Sheet2!B$3 -> -2.35 | F80: 56.95806322 | G80: -1.350319424 | H80: -179.8120659 | I80: 365.2612141 | K80: =IF(Sheet1!$B$18=TRUE,E80,a) -> -2.347305389 | L80: =IF(Sheet1!$B$18=TRUE,F80,0) -> 56.95806322 | M80: =IF(Sheet1!$B$20=TRUE,$E80,a) -> -2.347305389 | N80: =IF(Sheet1!$B$20=TRUE,G80,0) -> -1.350319424 | O80: =IF(Sheet1!$B$22=TRUE,$E80,a) -> -3.5 | P80: =IF(Sheet1!$B$22=TRUE,H80,0) -> 0 | Q80: =IF(Sheet1!$B$24=TRUE,$E80,a) -> -2.347305389 | R80: =IF(Sheet1!$B$24=TRUE,I80,0) -> 365.2612141
E81: =E80+Sheet2!B$3 -> -2.33 | F81: 56.91790422 | G81: -4.001372891 | H81: -174.3809573 | I81: 360.3393811 | K81: =IF(Sheet1!$B$18=TRUE,E81,a) -> -2.332335329 | L81: =IF(Sheet1!$B$18=TRUE,F81,0) -> 56.91790422 | M81: =IF(Sheet1!$B$20=TRUE,$E81,a) -> -2.332335329 | N81: =IF(Sheet1!$B$20=TRUE,G81,0) -> -4.001372891 | O81: =IF(Sheet1!$B$22=TRUE,$E81,a) -> -3.5 | P81: =IF(Sheet1!$B$22=TRUE,H81,0) -> 0 | Q81: =IF(Sheet1!$B$24=TRUE,$E81,a) -> -2.332335329 | R81: =IF(Sheet1!$B$24=TRUE,I81,0) -> 360.3393811
E82: =E81+Sheet2!B$3 -> -2.32 | F82: 56.8386646 | G82: -6.57167283 | H82: -169.0233275 | I82: 355.4444405 | K82: =IF(Sheet1!$B$18=TRUE,E82,a) -> -2.317365269 | L82: =IF(Sheet1!$B$18=TRUE,F82,0) -> 56.8386646 | M82: =IF(Sheet1!$B$20=TRUE,$E82,a) -> -2.317365269 | N82: =IF(Sheet1!$B$20=TRUE,G82,0) -> -6.57167283 | O82: =IF(Sheet1!$B$22=TRUE,$E82,a) -> -3.5 | P82: =IF(Sheet1!$B$22=TRUE,H82,0) -> 0 | Q82: =IF(Sheet1!$B$24=TRUE,$E82,a) -> -2.317365269 | R82: =IF(Sheet1!$B$24=TRUE,I82,0) -> 355.4444405
E83: =E82+Sheet2!B$3 -> -2.30 | F83: 56.72154503 | G83: -9.062316211 | H83: -163.738774 | I83: 350.5763921 | K83: =IF(Sheet1!$B$18=TRUE,E83,a) -> -2.30239521 | L83: =IF(Sheet1!$B$18=TRUE,F83,0) -> 56.72154503 | M83: =IF(Sheet1!$B$20=TRUE,$E83,a) -> -2.30239521 | N83: =IF(Sheet1!$B$20=TRUE,G83,0) -> -9.062316211 | O83: =IF(Sheet1!$B$22=TRUE,$E83,a) -> -3.5 | P83: =IF(Sheet1!$B$22=TRUE,H83,0) -> 0 | Q83: =IF(Sheet1!$B$24=TRUE,$E83,a) -> -2.30239521 | R83: =IF(Sheet1!$B$24=TRUE,I83,0) -> 350.5763921
E84: =E83+Sheet2!B$3 -> -2.29 | F84: 56.56772981 | G84: -11.47439398 | H84: -158.5268941 | I84: 345.7352361 | K84: =IF(Sheet1!$B$18=TRUE,E84,a) -> -2.28742515 | L84: =IF(Sheet1!$B$18=TRUE,F84,0) -> 56.56772981 | M84: =IF(Sheet1!$B$20=TRUE,$E84,a) -> -2.28742515 | N84: =IF(Sheet1!$B$20=TRUE,G84,0) -> -11.47439398 | O84: =IF(Sheet1!$B$22=TRUE,$E84,a) -> -3.5 | P84: =IF(Sheet1!$B$22=TRUE,H84,0) -> 0 | Q84: =IF(Sheet1!$B$24=TRUE,$E84,a) -> -2.28742515 | R84: =IF(Sheet1!$B$24=TRUE,I84,0) -> 345.7352361
E85: =E84+Sheet2!B$3 -> -2.27 | F85: 56.37838693 | G85: -13.80899104 | H85: -153.3872854 | I85: 340.9209724 | K85: =IF(Sheet1!$B$18=TRUE,E85,a) -> -2.27245509 | L85: =IF(Sheet1!$B$18=TRUE,F85,0) -> 56.37838693 | M85: =IF(Sheet1!$B$20=TRUE,$E85,a) -> -2.27245509 | N85: =IF(Sheet1!$B$20=TRUE,G85,0) -> -13.80899104 | O85: =IF(Sheet1!$B$22=TRUE,$E85,a) -> -3.5 | P85: =IF(Sheet1!$B$22=TRUE,H85,0) -> 0 | Q85: =IF(Sheet1!$B$24=TRUE,$E85,a) -> -2.27245509 | R85: =IF(Sheet1!$B$24=TRUE,I85,0) -> 340.9209724
E86: =E85+Sheet2!B$3 -> -2.26 | F86: 56.15466821 | G86: -16.0671863 | H86: -148.3195452 | I86: 336.1336011 | K86: =IF(Sheet1!$B$18=TRUE,E86,a) -> -2.25748503 | L86: =IF(Sheet1!$B$18=TRUE,F86,0) -> 56.15466821 | M86: =IF(Sheet1!$B$20=TRUE,$E86,a) -> -2.25748503 | N86: =IF(Sheet1!$B$20=TRUE,G86,0) -> -16.0671863 | O86: =IF(Sheet1!$B$22=TRUE,$E86,a) -> -3.5 | P86: =IF(Sheet1!$B$22=TRUE,H86,0) -> 0 | Q86: =IF(Sheet1!$B$24=TRUE,$E86,a) -> -2.25748503 | R86: =IF(Sheet1!$B$24=TRUE,I86,0) -> 336.1336011
E87: =E86+Sheet2!B$3 -> -2.24 | F87: 55.89770934 | G87: -18.2500526 | H87: -143.323271 | I87: 331.373122 | K87: =IF(Sheet1!$B$18=TRUE,E87,a) -> -2.24251497 | L87: =IF(Sheet1!$B$18=TRUE,F87,0) -> 55.89770934 | M87: =IF(Sheet1!$B$20=TRUE,$E87,a) -> -2.24251497 | N87: =IF(Sheet1!$B$20=TRUE,G87,0) -> -18.2500526 | O87: =IF(Sheet1!$B$22=TRUE,$E87,a) -> -3.5 | P87: =IF(Sheet1!$B$22=TRUE,H87,0) -> 0 | Q87: =IF(Sheet1!$B$24=TRUE,$E87,a) -> -2.24251497 | R87: =IF(Sheet1!$B$24=TRUE,I87,0) -> 331.373122
E88: =E87+Sheet2!B$3 -> -2.23 | F88: 55.60863002 | G88: -20.3586568 | H88: -138.3980601 | I88: 326.6395353 | K88: =IF(Sheet1!$B$18=TRUE,E88,a) -> -2.22754491 | L88: =IF(Sheet1!$B$18=TRUE,F88,0) -> 55.60863002 | M88: =IF(Sheet1!$B$20=TRUE,$E88,a) -> -2.22754491 | N88: =IF(Sheet1!$B$20=TRUE,G88,0) -> -20.3586568 | O88: =IF(Sheet1!$B$22=TRUE,$E88,a) -> -3.5 | P88: =IF(Sheet1!$B$22=TRUE,H88,0) -> 0 | Q88: =IF(Sheet1!$B$24=TRUE,$E88,a) -> -2.22754491 | R88: =IF(Sheet1!$B$24=TRUE,I88,0) -> 326.6395353
E89: =E88+Sheet2!B$3 -> -2.21 | F89: 55.28853399 | G89: -22.3940597 | H89: -133.54351 | I89: 321.9328409 | K89: =IF(Sheet1!$B$18=TRUE,E89,a) -> -2.21257485 | L89: =IF(Sheet1!$B$18=TRUE,F89,0) -> 55.28853399 | M89: =IF(Sheet1!$B$20=TRUE,$E89,a) -> -2.21257485 | N89: =IF(Sheet1!$B$20=TRUE,G89,0) -> -22.3940597 | O89: =IF(Sheet1!$B$22=TRUE,$E89,a) -> -3.5 | P89: =IF(Sheet1!$B$22=TRUE,H89,0) -> 0 | Q89: =IF(Sheet1!$B$24=TRUE,$E89,a) -> -2.21257485 | R89: =IF(Sheet1!$B$24=TRUE,I89,0) -> 321.9328409
E90: =E89+Sheet2!B$3 -> -2.20 | F90: 54.9385092 | G90: -24.35731607 | H90: -128.7592181 | I90: 317.2530388 | K90: =IF(Sheet1!$B$18=TRUE,E90,a) -> -2.19760479 | L90: =IF(Sheet1!$B$18=TRUE,F90,0) -> 54.9385092 | M90: =IF(Sheet1!$B$20=TRUE,$E90,a) -> -2.19760479 | N90: =IF(Sheet1!$B$20=TRUE,G90,0) -> -24.35731607 | O90: =IF(Sheet1!$B$22=TRUE,$E90,a) -> -3.5 | P90: =IF(Sheet1!$B$22=TRUE,H90,0) -> 0 | Q90: =IF(Sheet1!$B$24=TRUE,$E90,a) -> -2.19760479 | R90: =IF(Sheet1!$B$24=TRUE,I90,0) -> 317.2530388
E91: =E90+Sheet2!B$3 -> -2.18 | F91: 54.55962781 | G91: -26.24947469 | H91: -124.0447818 | I91: 312.6001291 | K91: =IF(Sheet1!$B$18=TRUE,E91,a) -> -2.182634731 | L91: =IF(Sheet1!$B$18=TRUE,F91,0) -> 54.55962781 | M91: =IF(Sheet1!$B$20=TRUE,$E91,a) -> -2.182634731 | N91: =IF(Sheet1!$B$20=TRUE,G91,0) -> -26.24947469 | O91: =IF(Sheet1!$B$22=TRUE,$E91,a) -> -3.5 | P91: =IF(Sheet1!$B$22=TRUE,H91,0) -> 0 | Q91: =IF(Sheet1!$B$24=TRUE,$E91,a) -> -2.182634731 | R91: =IF(Sheet1!$B$24=TRUE,I91,0) -> 312.6001291
E92: =E91+Sheet2!B$3 -> -2.17 | F92: 54.15294636 | G92: -28.07157827 | H92: -119.3997986 | I92: 307.9741117 | K92: =IF(Sheet1!$B$18=TRUE,E92,a) -> -2.167664671 | L92: =IF(Sheet1!$B$18=TRUE,F92,0) -> 54.15294636 | M92: =IF(Sheet1!$B$20=TRUE,$E92,a) -> -2.167664671 | N92: =IF(Sheet1!$B$20=TRUE,G92,0) -> -28.07157827 | O92: =IF(Sheet1!$B$22=TRUE,$E92,a) -> -3.5 | P92: =IF(Sheet1!$B$22=TRUE,H92,0) -> 0 | Q92: =IF(Sheet1!$B$24=TRUE,$E92,a) -> -2.167664671 | R92: =IF(Sheet1!$B$24=TRUE,I92,0) -> 307.9741117
E93: =E92+Sheet2!B$3 -> -2.15 | F93: 53.7195058 | G93: -29.82466352 | H93: -114.8238658 | I93: 303.3749866 | K93: =IF(Sheet1!$B$18=TRUE,E93,a) -> -2.152694611 | L93: =IF(Sheet1!$B$18=TRUE,F93,0) -> 53.7195058 | M93: =IF(Sheet1!$B$20=TRUE,$E93,a) -> -2.152694611 | N93: =IF(Sheet1!$B$20=TRUE,G93,0) -> -29.82466352 | O93: =IF(Sheet1!$B$22=TRUE,$E93,a) -> -3.5 | P93: =IF(Sheet1!$B$22=TRUE,H93,0) -> 0 | Q93: =IF(Sheet1!$B$24=TRUE,$E93,a) -> -2.152694611 | R93: =IF(Sheet1!$B$24=TRUE,I93,0) -> 303.3749866
E94: =E93+Sheet2!B$3 -> -2.14 | F94: 53.26033162 | G94: -31.50976111 | H94: -110.3165809 | I94: 298.8027538 | K94: =IF(Sheet1!$B$18=TRUE,E94,a) -> -2.137724551 | L94: =IF(Sheet1!$B$18=TRUE,F94,0) -> 53.26033162 | M94: =IF(Sheet1!$B$20=TRUE,$E94,a) -> -2.137724551 | N94: =IF(Sheet1!$B$20=TRUE,G94,0) -> -31.50976111 | O94: =IF(Sheet1!$B$22=TRUE,$E94,a) -> -3.5 | P94: =IF(Sheet1!$B$22=TRUE,H94,0) -> 0 | Q94: =IF(Sheet1!$B$24=TRUE,$E94,a) -> -2.137724551 | R94: =IF(Sheet1!$B$24=TRUE,I94,0) -> 298.8027538
E95: =E94+Sheet2!B$3 -> -2.12 | F95: 52.77643392 | G95: -33.12789571 | H95: -105.8775414 | I95: 294.2574133 | K95: =IF(Sheet1!$B$18=TRUE,E95,a) -> -2.122754491 | L95: =IF(Sheet1!$B$18=TRUE,F95,0) -> 52.77643392 | M95: =IF(Sheet1!$B$20=TRUE,$E95,a) -> -2.122754491 | N95: =IF(Sheet1!$B$20=TRUE,G95,0) -> -33.12789571 | O95: =IF(Sheet1!$B$22=TRUE,$E95,a) -> -3.5 | P95: =IF(Sheet1!$B$22=TRUE,H95,0) -> 0 | Q95: =IF(Sheet1!$B$24=TRUE,$E95,a) -> -2.122754491 | R95: =IF(Sheet1!$B$24=TRUE,I95,0) -> 294.2574133
E96: =E95+Sheet2!B$3 -> -2.11 | F96: 52.26880752 | G96: -34.68008592 | H96: -101.5063445 | I96: 289.7389652 | K96: =IF(Sheet1!$B$18=TRUE,E96,a) -> -2.107784431 | L96: =IF(Sheet1!$B$18=TRUE,F96,0) -> 52.26880752 | M96: =IF(Sheet1!$B$20=TRUE,$E96,a) -> -2.107784431 | N96: =IF(Sheet1!$B$20=TRUE,G96,0) -> -34.68008592 | O96: =IF(Sheet1!$B$22=TRUE,$E96,a) -> -3.5 | P96: =IF(Sheet1!$B$22=TRUE,H96,0) -> 0 | Q96: =IF(Sheet1!$B$24=TRUE,$E96,a) -> -2.107784431 | R96: =IF(Sheet1!$B$24=TRUE,I96,0) -> 289.7389652
E97: =E96+Sheet2!B$3 -> -2.09 | F97: 51.73843201 | G97: -36.16734435 | H97: -97.20258787 | I97: 285.2474094 | K97: =IF(Sheet1!$B$18=TRUE,E97,a) -> -2.092814371 | L97: =IF(Sheet1!$B$18=TRUE,F97,0) -> 51.73843201 | M97: =IF(Sheet1!$B$20=TRUE,$E97,a) -> -2.092814371 | N97: =IF(Sheet1!$B$20=TRUE,G97,0) -> -36.16734435 | O97: =IF(Sheet1!$B$22=TRUE,$E97,a) -> -3.5 | P97: =IF(Sheet1!$B$22=TRUE,H97,0) -> 0 | Q97: =IF(Sheet1!$B$24=TRUE,$E97,a) -> -2.092814371 | R97: =IF(Sheet1!$B$24=TRUE,I97,0) -> 285.2474094
E98: =E97+Sheet2!B$3 -> -2.08 | F98: 51.18627188 | G98: -37.59067756 | H98: -92.96586876 | I98: 280.7827459 | K98: =IF(Sheet1!$B$18=TRUE,E98,a) -> -2.077844311 | L98: =IF(Sheet1!$B$18=TRUE,F98,0) -> 51.18627188 | M98: =IF(Sheet1!$B$20=TRUE,$E98,a) -> -2.077844311 | N98: =IF(Sheet1!$B$20=TRUE,G98,0) -> -37.59067756 | O98: =IF(Sheet1!$B$22=TRUE,$E98,a) -> -3.5 | P98: =IF(Sheet1!$B$22=TRUE,H98,0) -> 0 | Q98: =IF(Sheet1!$B$24=TRUE,$E98,a) -> -2.077844311 | R98: =IF(Sheet1!$B$24=TRUE,I98,0) -> 280.7827459
E99: =E98+Sheet2!B$3 -> -2.06 | F99: 50.61327661 | G99: -38.9510861 | H99: -88.79578464 | I99: 276.3449747 | K99: =IF(Sheet1!$B$18=TRUE,E99,a) -> -2.062874251 | L99: =IF(Sheet1!$B$18=TRUE,F99,0) -> 50.61327661 | M99: =IF(Sheet1!$B$20=TRUE,$E99,a) -> -2.062874251 | N99: =IF(Sheet1!$B$20=TRUE,G99,0) -> -38.9510861 | O99: =IF(Sheet1!$B$22=TRUE,$E99,a) -> -3.5 | P99: =IF(Sheet1!$B$22=TRUE,H99,0) -> 0 | Q99: =IF(Sheet1!$B$24=TRUE,$E99,a) -> -2.062874251 | R99: =IF(Sheet1!$B$24=TRUE,I99,0) -> 276.3449747
E100: =E99+Sheet2!B$3 -> -2.05 | F100: 50.02038073 | G100: -40.24956449 | H100: -84.69193293 | I100: 271.9340959 | K100: =IF(Sheet1!$B$18=TRUE,E100,a) -> -2.047904192 | L100: =IF(Sheet1!$B$18=TRUE,F100,0) -> 50.02038073 | M100: =IF(Sheet1!$B$20=TRUE,$E100,a) -> -2.047904192 | N100: =IF(Sheet1!$B$20=TRUE,G100,0) -> -40.24956449 | O100: =IF(Sheet1!$B$22=TRUE,$E100,a) -> -3.5 | P100: =IF(Sheet1!$B$22=TRUE,H100,0) -> 0 | Q100: =IF(Sheet1!$B$24=TRUE,$E100,a) -> -2.047904192 | R100: =IF(Sheet1!$B$24=TRUE,I100,0) -> 271.9340959
E101: =E100+Sheet2!B$3 -> -2.03 | F101: 49.40850393 | G101: -41.48710121 | H101: -80.65391105 | I101: 267.5501094 | K101: =IF(Sheet1!$B$18=TRUE,E101,a) -> -2.032934132 | L101: =IF(Sheet1!$B$18=TRUE,F101,0) -> 49.40850393 | M101: =IF(Sheet1!$B$20=TRUE,$E101,a) -> -2.032934132 | N101: =IF(Sheet1!$B$20=TRUE,G101,0) -> -41.48710121 | O101: =IF(Sheet1!$B$22=TRUE,$E101,a) -> -3.5 | P101: =IF(Sheet1!$B$22=TRUE,H101,0) -> 0 | Q101: =IF(Sheet1!$B$24=TRUE,$E101,a) -> -2.032934132 | R101: =IF(Sheet1!$B$24=TRUE,I101,0) -> 267.5501094
E102: =E101+Sheet2!B$3 -> -2.02 | F102: 48.77855115 | G102: -42.66467873 | H102: -76.68131642 | I102: 263.1930152 | K102: =IF(Sheet1!$B$18=TRUE,E102,a) -> -2.017964072 | L102: =IF(Sheet1!$B$18=TRUE,F102,0) -> 48.77855115 | M102: =IF(Sheet1!$B$20=TRUE,$E102,a) -> -2.017964072 | N102: =IF(Sheet1!$B$20=TRUE,G102,0) -> -42.66467873 | O102: =IF(Sheet1!$B$22=TRUE,$E102,a) -> -3.5 | P102: =IF(Sheet1!$B$22=TRUE,H102,0) -> 0 | Q102: =IF(Sheet1!$B$24=TRUE,$E102,a) -> -2.017964072 | R102: =IF(Sheet1!$B$24=TRUE,I102,0) -> 263.1930152
E103: =E102+Sheet2!B$3 -> -2.00 | F103: 48.13141266 | G103: -43.78327348 | H103: -72.77374646 | I103: 258.8628133 | K103: =IF(Sheet1!$B$18=TRUE,E103,a) -> -2.002994012 | L103: =IF(Sheet1!$B$18=TRUE,F103,0) -> 48.13141266 | M103: =IF(Sheet1!$B$20=TRUE,$E103,a) -> -2.002994012 | N103: =IF(Sheet1!$B$20=TRUE,G103,0) -> -43.78327348 | O103: =IF(Sheet1!$B$22=TRUE,$E103,a) -> -3.5 | P103: =IF(Sheet1!$B$22=TRUE,H103,0) -> 0 | Q103: =IF(Sheet1!$B$24=TRUE,$E103,a) -> -2.002994012 | R103: =IF(Sheet1!$B$24=TRUE,I103,0) -> 258.8628133
E104: =E103+Sheet2!B$3 -> -1.99 | F104: 47.46796418 | G104: -44.84385588 | H104: -68.93079859 | I104: 254.5595037 | K104: =IF(Sheet1!$B$18=TRUE,E104,a) -> -1.988023952 | L104: =IF(Sheet1!$B$18=TRUE,F104,0) -> 47.46796418 | M104: =IF(Sheet1!$B$20=TRUE,$E104,a) -> -1.988023952 | N104: =IF(Sheet1!$B$20=TRUE,G104,0) -> -44.84385588 | O104: =IF(Sheet1!$B$22=TRUE,$E104,a) -> -3.5 | P104: =IF(Sheet1!$B$22=TRUE,H104,0) -> 0 | Q104: =IF(Sheet1!$B$24=TRUE,$E104,a) -> -1.988023952 | R104: =IF(Sheet1!$B$24=TRUE,I104,0) -> 254.5595037
E105: =E104+Sheet2!B$3 -> -1.97 | F105: 46.78906692 | G105: -45.8473903 | H105: -65.15207024 | I105: 250.2830865 | K105: =IF(Sheet1!$B$18=TRUE,E105,a) -> -1.973053892 | L105: =IF(Sheet1!$B$18=TRUE,F105,0) -> 46.78906692 | M105: =IF(Sheet1!$B$20=TRUE,$E105,a) -> -1.973053892 | N105: =IF(Sheet1!$B$20=TRUE,G105,0) -> -45.8473903 | O105: =IF(Sheet1!$B$22=TRUE,$E105,a) -> -3.5 | P105: =IF(Sheet1!$B$22=TRUE,H105,0) -> 0 | Q105: =IF(Sheet1!$B$24=TRUE,$E105,a) -> -1.973053892 | R105: =IF(Sheet1!$B$24=TRUE,I105,0) -> 250.2830865
E106: =E105+Sheet2!B$3 -> -1.96 | F106: 46.09556771 | G106: -46.79483511 | H106: -61.43715881 | I106: 246.0335616 | K106: =IF(Sheet1!$B$18=TRUE,E106,a) -> -1.958083832 | L106: =IF(Sheet1!$B$18=TRUE,F106,0) -> 46.09556771 | M106: =IF(Sheet1!$B$20=TRUE,$E106,a) -> -1.958083832 | N106: =IF(Sheet1!$B$20=TRUE,G106,0) -> -46.79483511 | O106: =IF(Sheet1!$B$22=TRUE,$E106,a) -> -3.5 | P106: =IF(Sheet1!$B$22=TRUE,H106,0) -> 0 | Q106: =IF(Sheet1!$B$24=TRUE,$E106,a) -> -1.958083832 | R106: =IF(Sheet1!$B$24=TRUE,I106,0) -> 246.0335616
E107: =E106+Sheet2!B$3 -> -1.94 | F107: 45.38829909 | G107: -47.68714263 | H107: -57.78566174 | I107: 241.810929 | K107: =IF(Sheet1!$B$18=TRUE,E107,a) -> -1.943113772 | L107: =IF(Sheet1!$B$18=TRUE,F107,0) -> 45.38829909 | M107: =IF(Sheet1!$B$20=TRUE,$E107,a) -> -1.943113772 | N107: =IF(Sheet1!$B$20=TRUE,G107,0) -> -47.68714263 | O107: =IF(Sheet1!$B$22=TRUE,$E107,a) -> -3.5 | P107: =IF(Sheet1!$B$22=TRUE,H107,0) -> 0 | Q107: =IF(Sheet1!$B$24=TRUE,$E107,a) -> -1.943113772 | R107: =IF(Sheet1!$B$24=TRUE,I107,0) -> 241.810929
E108: =E107+Sheet2!B$3 -> -1.93 | F108: 44.66807936 | G108: -48.52525917 | H108: -54.19717645 | I108: 237.6151888 | K108: =IF(Sheet1!$B$18=TRUE,E108,a) -> -1.928143713 | L108: =IF(Sheet1!$B$18=TRUE,F108,0) -> 44.66807936 | M108: =IF(Sheet1!$B$20=TRUE,$E108,a) -> -1.928143713 | N108: =IF(Sheet1!$B$20=TRUE,G108,0) -> -48.52525917 | O108: =IF(Sheet1!$B$22=TRUE,$E108,a) -> -3.5 | P108: =IF(Sheet1!$B$22=TRUE,H108,0) -> 0 | Q108: =IF(Sheet1!$B$24=TRUE,$E108,a) -> -1.928143713 | R108: =IF(Sheet1!$B$24=TRUE,I108,0) -> 237.6151888
E109: =E108+Sheet2!B$3 -> -1.91 | F109: 43.93571274 | G109: -49.31012501 | H109: -50.67130034 | I109: 233.4463409 | K109: =IF(Sheet1!$B$18=TRUE,E109,a) -> -1.913173653 | L109: =IF(Sheet1!$B$18=TRUE,F109,0) -> 43.93571274 | M109: =IF(Sheet1!$B$20=TRUE,$E109,a) -> -1.913173653 | N109: =IF(Sheet1!$B$20=TRUE,G109,0) -> -49.31012501 | O109: =IF(Sheet1!$B$22=TRUE,$E109,a) -> -3.5 | P109: =IF(Sheet1!$B$22=TRUE,H109,0) -> 0 | Q109: =IF(Sheet1!$B$24=TRUE,$E109,a) -> -1.913173653 | R109: =IF(Sheet1!$B$24=TRUE,I109,0) -> 233.4463409
E110: =E109+Sheet2!B$3 -> -1.90 | F110: 43.19198937 | G110: -50.04267439 | H110: -47.20763085 | I110: 229.3043852 | K110: =IF(Sheet1!$B$18=TRUE,E110,a) -> -1.898203593 | L110: =IF(Sheet1!$B$18=TRUE,F110,0) -> 43.19198937 | M110: =IF(Sheet1!$B$20=TRUE,$E110,a) -> -1.898203593 | N110: =IF(Sheet1!$B$20=TRUE,G110,0) -> -50.04267439 | O110: =IF(Sheet1!$B$22=TRUE,$E110,a) -> -3.5 | P110: =IF(Sheet1!$B$22=TRUE,H110,0) -> 0 | Q110: =IF(Sheet1!$B$24=TRUE,$E110,a) -> -1.898203593 | R110: =IF(Sheet1!$B$24=TRUE,I110,0) -> 229.3043852
E111: =E110+Sheet2!B$3 -> -1.88 | F111: 42.4376855 | G111: -50.72383553 | H111: -43.80576539 | I111: 225.189322 | K111: =IF(Sheet1!$B$18=TRUE,E111,a) -> -1.883233533 | L111: =IF(Sheet1!$B$18=TRUE,F111,0) -> 42.4376855 | M111: =IF(Sheet1!$B$20=TRUE,$E111,a) -> -1.883233533 | N111: =IF(Sheet1!$B$20=TRUE,G111,0) -> -50.72383553 | O111: =IF(Sheet1!$B$22=TRUE,$E111,a) -> -3.5 | P111: =IF(Sheet1!$B$22=TRUE,H111,0) -> 0 | Q111: =IF(Sheet1!$B$24=TRUE,$E111,a) -> -1.883233533 | R111: =IF(Sheet1!$B$24=TRUE,I111,0) -> 225.189322
E112: =E111+Sheet2!B$3 -> -1.87 | F112: 41.67356349 | G112: -51.35453064 | H112: -40.46530139 | I112: 221.101151 | K112: =IF(Sheet1!$B$18=TRUE,E112,a) -> -1.868263473 | L112: =IF(Sheet1!$B$18=TRUE,F112,0) -> 41.67356349 | M112: =IF(Sheet1!$B$20=TRUE,$E112,a) -> -1.868263473 | N112: =IF(Sheet1!$B$20=TRUE,G112,0) -> -51.35453064 | O112: =IF(Sheet1!$B$22=TRUE,$E112,a) -> -3.5 | P112: =IF(Sheet1!$B$22=TRUE,H112,0) -> 0 | Q112: =IF(Sheet1!$B$24=TRUE,$E112,a) -> -1.868263473 | R112: =IF(Sheet1!$B$24=TRUE,I112,0) -> 221.101151
E113: =E112+Sheet2!B$3 -> -1.85 | F113: 40.90037196 | G113: -51.93567589 | H113: -37.18583626 | I113: 217.0398724 | K113: =IF(Sheet1!$B$18=TRUE,E113,a) -> -1.853293413 | L113: =IF(Sheet1!$B$18=TRUE,F113,0) -> 40.90037196 | M113: =IF(Sheet1!$B$20=TRUE,$E113,a) -> -1.853293413 | N113: =IF(Sheet1!$B$20=TRUE,G113,0) -> -51.93567589 | O113: =IF(Sheet1!$B$22=TRUE,$E113,a) -> -3.5 | P113: =IF(Sheet1!$B$22=TRUE,H113,0) -> 0 | Q113: =IF(Sheet1!$B$24=TRUE,$E113,a) -> -1.853293413 | R113: =IF(Sheet1!$B$24=TRUE,I113,0) -> 217.0398724
E114: =E113+Sheet2!B$3 -> -1.84 | F114: 40.11884584 | G114: -52.46818141 | H114: -33.96696742 | I114: 213.005486 | K114: =IF(Sheet1!$B$18=TRUE,E114,a) -> -1.838323353 | L114: =IF(Sheet1!$B$18=TRUE,F114,0) -> 40.11884584 | M114: =IF(Sheet1!$B$20=TRUE,$E114,a) -> -1.838323353 | N114: =IF(Sheet1!$B$20=TRUE,G114,0) -> -52.46818141 | O114: =IF(Sheet1!$B$22=TRUE,$E114,a) -> -3.5 | P114: =IF(Sheet1!$B$22=TRUE,H114,0) -> 0 | Q114: =IF(Sheet1!$B$24=TRUE,$E114,a) -> -1.838323353 | R114: =IF(Sheet1!$B$24=TRUE,I114,0) -> 213.005486
E115: =E114+Sheet2!B$3 -> -1.82 | F115: 39.32970652 | G115: -52.95295133 | H115: -30.8082923 | I115: 208.997992 | K115: =IF(Sheet1!$B$18=TRUE,E115,a) -> -1.823353293 | L115: =IF(Sheet1!$B$18=TRUE,F115,0) -> 39.32970652 | M115: =IF(Sheet1!$B$20=TRUE,$E115,a) -> -1.823353293 | N115: =IF(Sheet1!$B$20=TRUE,G115,0) -> -52.95295133 | O115: =IF(Sheet1!$B$22=TRUE,$E115,a) -> -3.5 | P115: =IF(Sheet1!$B$22=TRUE,H115,0) -> 0 | Q115: =IF(Sheet1!$B$24=TRUE,$E115,a) -> -1.823353293 | R115: =IF(Sheet1!$B$24=TRUE,I115,0) -> 208.997992
E116: =E115+Sheet2!B$3 -> -1.81 | F116: 38.53366186 | G116: -53.39088373 | H116: -27.70940832 | I116: 205.0173904 | K116: =IF(Sheet1!$B$18=TRUE,E116,a) -> -1.808383234 | L116: =IF(Sheet1!$B$18=TRUE,F116,0) -> 38.53366186 | M116: =IF(Sheet1!$B$20=TRUE,$E116,a) -> -1.808383234 | N116: =IF(Sheet1!$B$20=TRUE,G116,0) -> -53.39088373 | O116: =IF(Sheet1!$B$22=TRUE,$E116,a) -> -3.5 | P116: =IF(Sheet1!$B$22=TRUE,H116,0) -> 0 | Q116: =IF(Sheet1!$B$24=TRUE,$E116,a) -> -1.808383234 | R116: =IF(Sheet1!$B$24=TRUE,I116,0) -> 205.0173904
E117: =E116+Sheet2!B$3 -> -1.79 | F117: 37.73140634 | G117: -53.78287068 | H117: -24.66991289 | I117: 201.063681 | K117: =IF(Sheet1!$B$18=TRUE,E117,a) -> -1.793413174 | L117: =IF(Sheet1!$B$18=TRUE,F117,0) -> 37.73140634 | M117: =IF(Sheet1!$B$20=TRUE,$E117,a) -> -1.793413174 | N117: =IF(Sheet1!$B$20=TRUE,G117,0) -> -53.78287068 | O117: =IF(Sheet1!$B$22=TRUE,$E117,a) -> -3.5 | P117: =IF(Sheet1!$B$22=TRUE,H117,0) -> 0 | Q117: =IF(Sheet1!$B$24=TRUE,$E117,a) -> -1.793413174 | R117: =IF(Sheet1!$B$24=TRUE,I117,0) -> 201.063681
E118: =E117+Sheet2!B$3 -> -1.78 | F118: 36.92362112 | G118: -54.12979822 | H118: -21.68940344 | I118: 197.136864 | K118: =IF(Sheet1!$B$18=TRUE,E118,a) -> -1.778443114 | L118: =IF(Sheet1!$B$18=TRUE,F118,0) -> 36.92362112 | M118: =IF(Sheet1!$B$20=TRUE,$E118,a) -> -1.778443114 | N118: =IF(Sheet1!$B$20=TRUE,G118,0) -> -54.12979822 | O118: =IF(Sheet1!$B$22=TRUE,$E118,a) -> -3.5 | P118: =IF(Sheet1!$B$22=TRUE,H118,0) -> 0 | Q118: =IF(Sheet1!$B$24=TRUE,$E118,a) -> -1.778443114 | R118: =IF(Sheet1!$B$24=TRUE,I118,0) -> 197.136864
E119: =E118+Sheet2!B$3 -> -1.76 | F119: 36.11097415 | G119: -54.43254635 | H119: -18.76747738 | I119: 193.2369393 | K119: =IF(Sheet1!$B$18=TRUE,E119,a) -> -1.763473054 | L119: =IF(Sheet1!$B$18=TRUE,F119,0) -> 36.11097415 | M119: =IF(Sheet1!$B$20=TRUE,$E119,a) -> -1.763473054 | N119: =IF(Sheet1!$B$20=TRUE,G119,0) -> -54.43254635 | O119: =IF(Sheet1!$B$22=TRUE,$E119,a) -> -3.5 | P119: =IF(Sheet1!$B$22=TRUE,H119,0) -> 0 | Q119: =IF(Sheet1!$B$24=TRUE,$E119,a) -> -1.763473054 | R119: =IF(Sheet1!$B$24=TRUE,I119,0) -> 193.2369393
E120: =E119+Sheet2!B$3 -> -1.75 | F120: 35.29412025 | G120: -54.69198906 | H120: -15.90373214 | I120: 189.3639069 | K120: =IF(Sheet1!$B$18=TRUE,E120,a) -> -1.748502994 | L120: =IF(Sheet1!$B$18=TRUE,F120,0) -> 35.29412025 | M120: =IF(Sheet1!$B$20=TRUE,$E120,a) -> -1.748502994 | N120: =IF(Sheet1!$B$20=TRUE,G120,0) -> -54.69198906 | O120: =IF(Sheet1!$B$22=TRUE,$E120,a) -> -3.5 | P120: =IF(Sheet1!$B$22=TRUE,H120,0) -> 0 | Q120: =IF(Sheet1!$B$24=TRUE,$E120,a) -> -1.748502994 | R120: =IF(Sheet1!$B$24=TRUE,I120,0) -> 189.3639069
E121: =E120+Sheet2!B$3 -> -1.73 | F121: 34.47370121 | G121: -54.90899431 | H121: -13.09776514 | I121: 185.5177669 | K121: =IF(Sheet1!$B$18=TRUE,E121,a) -> -1.733532934 | L121: =IF(Sheet1!$B$18=TRUE,F121,0) -> 34.47370121 | M121: =IF(Sheet1!$B$20=TRUE,$E121,a) -> -1.733532934 | N121: =IF(Sheet1!$B$20=TRUE,G121,0) -> -54.90899431 | O121: =IF(Sheet1!$B$22=TRUE,$E121,a) -> -3.5 | P121: =IF(Sheet1!$B$22=TRUE,H121,0) -> 0 | Q121: =IF(Sheet1!$B$24=TRUE,$E121,a) -> -1.733532934 | R121: =IF(Sheet1!$B$24=TRUE,I121,0) -> 185.5177669
E122: =E121+Sheet2!B$3 -> -1.72 | F122: 33.65034585 | G122: -55.08442402 | H122: -10.34917379 | I122: 181.6985191 | K122: =IF(Sheet1!$B$18=TRUE,E122,a) -> -1.718562874 | L122: =IF(Sheet1!$B$18=TRUE,F122,0) -> 33.65034585 | M122: =IF(Sheet1!$B$20=TRUE,$E122,a) -> -1.718562874 | N122: =IF(Sheet1!$B$20=TRUE,G122,0) -> -55.08442402 | O122: =IF(Sheet1!$B$22=TRUE,$E122,a) -> -3.5 | P122: =IF(Sheet1!$B$22=TRUE,H122,0) -> 0 | Q122: =IF(Sheet1!$B$24=TRUE,$E122,a) -> -1.718562874 | R122: =IF(Sheet1!$B$24=TRUE,I122,0) -> 181.6985191
E123: =E122+Sheet2!B$3 -> -1.70 | F123: 32.82467015 | G123: -55.21913411 | H123: -7.657555519 | I123: 177.9061637 | K123: =IF(Sheet1!$B$18=TRUE,E123,a) -> -1.703592814 | L123: =IF(Sheet1!$B$18=TRUE,F123,0) -> 32.82467015 | M123: =IF(Sheet1!$B$20=TRUE,$E123,a) -> -1.703592814 | N123: =IF(Sheet1!$B$20=TRUE,G123,0) -> -55.21913411 | O123: =IF(Sheet1!$B$22=TRUE,$E123,a) -> -3.5 | P123: =IF(Sheet1!$B$22=TRUE,H123,0) -> 0 | Q123: =IF(Sheet1!$B$24=TRUE,$E123,a) -> -1.703592814 | R123: =IF(Sheet1!$B$24=TRUE,I123,0) -> 177.9061637
E124: =E123+Sheet2!B$3 -> -1.69 | F124: 31.99727731 | G124: -55.31397444 | H124: -5.022507747 | I124: 174.1407006 | K124: =IF(Sheet1!$B$18=TRUE,E124,a) -> -1.688622754 | L124: =IF(Sheet1!$B$18=TRUE,F124,0) -> 31.99727731 | M124: =IF(Sheet1!$B$20=TRUE,$E124,a) -> -1.688622754 | N124: =IF(Sheet1!$B$20=TRUE,G124,0) -> -55.31397444 | O124: =IF(Sheet1!$B$22=TRUE,$E124,a) -> -3.5 | P124: =IF(Sheet1!$B$22=TRUE,H124,0) -> 0 | Q124: =IF(Sheet1!$B$24=TRUE,$E124,a) -> -1.688622754 | R124: =IF(Sheet1!$B$24=TRUE,I124,0) -> 174.1407006
E125: =E124+Sheet2!B$3 -> -1.67 | F125: 31.16875787 | G125: -55.36978887 | H125: -2.443627894 | I125: 170.4021299 | K125: =IF(Sheet1!$B$18=TRUE,E125,a) -> -1.673652695 | L125: =IF(Sheet1!$B$18=TRUE,F125,0) -> 31.16875787 | M125: =IF(Sheet1!$B$20=TRUE,$E125,a) -> -1.673652695 | N125: =IF(Sheet1!$B$20=TRUE,G125,0) -> -55.36978887 | O125: =IF(Sheet1!$B$22=TRUE,$E125,a) -> -3.5 | P125: =IF(Sheet1!$B$22=TRUE,H125,0) -> 0 | Q125: =IF(Sheet1!$B$24=TRUE,$E125,a) -> -1.673652695 | R125: =IF(Sheet1!$B$24=TRUE,I125,0) -> 170.4021299
E126: =E125+Sheet2!B$3 -> -1.66 | F126: 30.33968976 | G126: -55.38741522 | H126: 0.07948662179 | I126: 166.6904514 | K126: =IF(Sheet1!$B$18=TRUE,E126,a) -> -1.658682635 | L126: =IF(Sheet1!$B$18=TRUE,F126,0) -> 30.33968976 | M126: =IF(Sheet1!$B$20=TRUE,$E126,a) -> -1.658682635 | N126: =IF(Sheet1!$B$20=TRUE,G126,0) -> -55.38741522 | O126: =IF(Sheet1!$B$22=TRUE,$E126,a) -> -3.5 | P126: =IF(Sheet1!$B$22=TRUE,H126,0) -> 0 | Q126: =IF(Sheet1!$B$24=TRUE,$E126,a) -> -1.658682635 | R126: =IF(Sheet1!$B$24=TRUE,I126,0) -> 166.6904514
E127: =E126+Sheet2!B$3 -> -1.64 | F127: 29.51063843 | G127: -55.36768529 | H127: 2.547238378 | I127: 163.0056653 | K127: =IF(Sheet1!$B$18=TRUE,E127,a) -> -1.643712575 | L127: =IF(Sheet1!$B$18=TRUE,F127,0) -> 29.51063843 | M127: =IF(Sheet1!$B$20=TRUE,$E127,a) -> -1.643712575 | N127: =IF(Sheet1!$B$20=TRUE,G127,0) -> -55.36768529 | O127: =IF(Sheet1!$B$22=TRUE,$E127,a) -> -3.5 | P127: =IF(Sheet1!$B$22=TRUE,H127,0) -> 0 | Q127: =IF(Sheet1!$B$24=TRUE,$E127,a) -> -1.643712575 | R127: =IF(Sheet1!$B$24=TRUE,I127,0) -> 163.0056653
E128: =E127+Sheet2!B$3 -> -1.63 | F128: 28.68215692 | G128: -55.31142485 | H128: 4.960029956 | I128: 159.3477715 | K128: =IF(Sheet1!$B$18=TRUE,E128,a) -> -1.628742515 | L128: =IF(Sheet1!$B$18=TRUE,F128,0) -> 28.68215692 | M128: =IF(Sheet1!$B$20=TRUE,$E128,a) -> -1.628742515 | N128: =IF(Sheet1!$B$20=TRUE,G128,0) -> -55.31142485 | O128: =IF(Sheet1!$B$22=TRUE,$E128,a) -> -3.5 | P128: =IF(Sheet1!$B$22=TRUE,H128,0) -> 0 | Q128: =IF(Sheet1!$B$24=TRUE,$E128,a) -> -1.628742515 | R128: =IF(Sheet1!$B$24=TRUE,I128,0) -> 159.3477715
E129: =E128+Sheet2!B$3 -> -1.61 | F129: 27.85478594 | G129: -55.21945365 | H129: 7.318263935 | I129: 155.7167701 | K129: =IF(Sheet1!$B$18=TRUE,E129,a) -> -1.613772455 | L129: =IF(Sheet1!$B$18=TRUE,F129,0) -> 27.85478594 | M129: =IF(Sheet1!$B$20=TRUE,$E129,a) -> -1.613772455 | N129: =IF(Sheet1!$B$20=TRUE,G129,0) -> -55.21945365 | O129: =IF(Sheet1!$B$22=TRUE,$E129,a) -> -3.5 | P129: =IF(Sheet1!$B$22=TRUE,H129,0) -> 0 | Q129: =IF(Sheet1!$B$24=TRUE,$E129,a) -> -1.613772455 | R129: =IF(Sheet1!$B$24=TRUE,I129,0) -> 155.7167701
E130: =E129+Sheet2!B$3 -> -1.60 | F130: 27.029054 | G130: -55.09258539 | H130: 9.622342894 | I130: 152.1126609 | K130: =IF(Sheet1!$B$18=TRUE,E130,a) -> -1.598802395 | L130: =IF(Sheet1!$B$18=TRUE,F130,0) -> 27.029054 | M130: =IF(Sheet1!$B$20=TRUE,$E130,a) -> -1.598802395 | N130: =IF(Sheet1!$B$20=TRUE,G130,0) -> -55.09258539 | O130: =IF(Sheet1!$B$22=TRUE,$E130,a) -> -3.5 | P130: =IF(Sheet1!$B$22=TRUE,H130,0) -> 0 | Q130: =IF(Sheet1!$B$24=TRUE,$E130,a) -> -1.598802395 | R130: =IF(Sheet1!$B$24=TRUE,I130,0) -> 152.1126609
E131: =E130+Sheet2!B$3 -> -1.58 | F131: 26.20547744 | G131: -54.93162777 | H131: 11.87266941 | I131: 148.5354441 | K131: =IF(Sheet1!$B$18=TRUE,E131,a) -> -1.583832335 | L131: =IF(Sheet1!$B$18=TRUE,F131,0) -> 26.20547744 | M131: =IF(Sheet1!$B$20=TRUE,$E131,a) -> -1.583832335 | N131: =IF(Sheet1!$B$20=TRUE,G131,0) -> -54.93162777 | O131: =IF(Sheet1!$B$22=TRUE,$E131,a) -> -3.5 | P131: =IF(Sheet1!$B$22=TRUE,H131,0) -> 0 | Q131: =IF(Sheet1!$B$24=TRUE,$E131,a) -> -1.583832335 | R131: =IF(Sheet1!$B$24=TRUE,I131,0) -> 148.5354441
E132: =E131+Sheet2!B$3 -> -1.57 | F132: =E132^5-2*E132^4-13*E132^3+14*E132^2+24*E132 -> 25.38456059 | G132: =5*E132^4-8*E132^3-39*E132^2+28*E132+24 -> -54.73738246 | H132: =20*E132^3-24*E132^2-78*E132+28 -> 14.06964607 | I132: =60*E132^2-48*E132-78 -> 144.9851196 | K132: =IF(Sheet1!$B$18=TRUE,E132,a) -> -1.568862275 | L132: =IF(Sheet1!$B$18=TRUE,F132,0) -> 25.38456059 | M132: =IF(Sheet1!$B$20=TRUE,$E132,a) -> -1.568862275 | N132: =IF(Sheet1!$B$20=TRUE,G132,0) -> -54.73738246 | O132: =IF(Sheet1!$B$22=TRUE,$E132,a) -> -3.5 | P132: =IF(Sheet1!$B$22=TRUE,H132,0) -> 0 | Q132: =IF(Sheet1!$B$24=TRUE,$E132,a) -> -1.568862275 | R132: =IF(Sheet1!$B$24=TRUE,I132,0) -> 144.9851196
E133: =E132+Sheet2!B$3 -> -1.55 | F133: 24.56679579 | G133: -54.51064509 | H133: 16.21367545 | I133: 141.4616874 | K133: =IF(Sheet1!$B$18=TRUE,E133,a) -> -1.553892216 | L133: =IF(Sheet1!$B$18=TRUE,F133,0) -> 24.56679579 | M133: =IF(Sheet1!$B$20=TRUE,$E133,a) -> -1.553892216 | N133: =IF(Sheet1!$B$20=TRUE,G133,0) -> -54.51064509 | O133: =IF(Sheet1!$B$22=TRUE,$E133,a) -> -3.5 | P133: =IF(Sheet1!$B$22=TRUE,H133,0) -> 0 | Q133: =IF(Sheet1!$B$24=TRUE,$E133,a) -> -1.553892216 | R133: =IF(Sheet1!$B$24=TRUE,I133,0) -> 141.4616874
E134: =E133+Sheet2!B$3 -> -1.54 | F134: 23.75266354 | G134: -54.25220528 | H134: 18.30516013 | I134: 137.9651475 | K134: =IF(Sheet1!$B$18=TRUE,E134,a) -> -1.538922156 | L134: =IF(Sheet1!$B$18=TRUE,F134,0) -> 23.75266354 | M134: =IF(Sheet1!$B$20=TRUE,$E134,a) -> -1.538922156 | N134: =IF(Sheet1!$B$20=TRUE,G134,0) -> -54.25220528 | O134: =IF(Sheet1!$B$22=TRUE,$E134,a) -> -3.5 | P134: =IF(Sheet1!$B$22=TRUE,H134,0) -> 0 | Q134: =IF(Sheet1!$B$24=TRUE,$E134,a) -> -1.538922156 | R134: =IF(Sheet1!$B$24=TRUE,I134,0) -> 137.9651475
E135: =E134+Sheet2!B$3 -> -1.52 | F135: 22.94263255 | G135: -53.9628466 | H135: 20.34450268 | I135: 134.4955 | K135: =IF(Sheet1!$B$18=TRUE,E135,a) -> -1.523952096 | L135: =IF(Sheet1!$B$18=TRUE,F135,0) -> 22.94263255 | M135: =IF(Sheet1!$B$20=TRUE,$E135,a) -> -1.523952096 | N135: =IF(Sheet1!$B$20=TRUE,G135,0) -> -53.9628466 | O135: =IF(Sheet1!$B$22=TRUE,$E135,a) -> -3.5 | P135: =IF(Sheet1!$B$22=TRUE,H135,0) -> 0 | Q135: =IF(Sheet1!$B$24=TRUE,$E135,a) -> -1.523952096 | R135: =IF(Sheet1!$B$24=TRUE,I135,0) -> 134.4955
E136: =E135+Sheet2!B$3 -> -1.51 | F136: 22.13715986 | G136: -53.64334661 | H136: 22.3321057 | I136: 131.0527448 | K136: =IF(Sheet1!$B$18=TRUE,E136,a) -> -1.508982036 | L136: =IF(Sheet1!$B$18=TRUE,F136,0) -> 22.13715986 | M136: =IF(Sheet1!$B$20=TRUE,$E136,a) -> -1.508982036 | N136: =IF(Sheet1!$B$20=TRUE,G136,0) -> -53.64334661 | O136: =IF(Sheet1!$B$22=TRUE,$E136,a) -> -3.5 | P136: =IF(Sheet1!$B$22=TRUE,H136,0) -> 0 | Q136: =IF(Sheet1!$B$24=TRUE,$E136,a) -> -1.508982036 | R136: =IF(Sheet1!$B$24=TRUE,I136,0) -> 131.0527448
E137: =E136+Sheet2!B$3 -> -1.49 | F137: 21.33669089 | G137: -53.29447685 | H137: 24.26837175 | I137: 127.6368819 | K137: =IF(Sheet1!$B$18=TRUE,E137,a) -> -1.494011976 | L137: =IF(Sheet1!$B$18=TRUE,F137,0) -> 21.33669089 | M137: =IF(Sheet1!$B$20=TRUE,$E137,a) -> -1.494011976 | N137: =IF(Sheet1!$B$20=TRUE,G137,0) -> -53.29447685 | O137: =IF(Sheet1!$B$22=TRUE,$E137,a) -> -3.5 | P137: =IF(Sheet1!$B$22=TRUE,H137,0) -> 0 | Q137: =IF(Sheet1!$B$24=TRUE,$E137,a) -> -1.494011976 | R137: =IF(Sheet1!$B$24=TRUE,I137,0) -> 127.6368819
E138: =E137+Sheet2!B$3 -> -1.48 | F138: 20.54165957 | G138: -52.91700282 | H138: 26.15370342 | I138: 124.2479114 | K138: =IF(Sheet1!$B$18=TRUE,E138,a) -> -1.479041916 | L138: =IF(Sheet1!$B$18=TRUE,F138,0) -> 20.54165957 | M138: =IF(Sheet1!$B$20=TRUE,$E138,a) -> -1.479041916 | N138: =IF(Sheet1!$B$20=TRUE,G138,0) -> -52.91700282 | O138: =IF(Sheet1!$B$22=TRUE,$E138,a) -> -3.5 | P138: =IF(Sheet1!$B$22=TRUE,H138,0) -> 0 | Q138: =IF(Sheet1!$B$24=TRUE,$E138,a) -> -1.479041916 | R138: =IF(Sheet1!$B$24=TRUE,I138,0) -> 124.2479114
E139: =E138+Sheet2!B$3 -> -1.46 | F139: 19.75248843 | G139: -52.51168399 | H139: 27.98850329 | I139: 120.8858331 | K139: =IF(Sheet1!$B$18=TRUE,E139,a) -> -1.464071856 | L139: =IF(Sheet1!$B$18=TRUE,F139,0) -> 19.75248843 | M139: =IF(Sheet1!$B$20=TRUE,$E139,a) -> -1.464071856 | N139: =IF(Sheet1!$B$20=TRUE,G139,0) -> -52.51168399 | O139: =IF(Sheet1!$B$22=TRUE,$E139,a) -> -3.5 | P139: =IF(Sheet1!$B$22=TRUE,H139,0) -> 0 | Q139: =IF(Sheet1!$B$24=TRUE,$E139,a) -> -1.464071856 | R139: =IF(Sheet1!$B$24=TRUE,I139,0) -> 120.8858331
E140: =E139+Sheet2!B$3 -> -1.45 | F140: 18.96958865 | G140: -52.07927382 | H140: 29.77317394 | I140: 117.5506472 | K140: =IF(Sheet1!$B$18=TRUE,E140,a) -> -1.449101796 | L140: =IF(Sheet1!$B$18=TRUE,F140,0) -> 18.96958865 | M140: =IF(Sheet1!$B$20=TRUE,$E140,a) -> -1.449101796 | N140: =IF(Sheet1!$B$20=TRUE,G140,0) -> -52.07927382 | O140: =IF(Sheet1!$B$22=TRUE,$E140,a) -> -3.5 | P140: =IF(Sheet1!$B$22=TRUE,H140,0) -> 0 | Q140: =IF(Sheet1!$B$24=TRUE,$E140,a) -> -1.449101796 | R140: =IF(Sheet1!$B$24=TRUE,I140,0) -> 117.5506472
E141: =E140+Sheet2!B$3 -> -1.43 | F141: 18.19336019 | G141: -51.62051974 | H141: 31.50811794 | I141: 114.2423536 | K141: =IF(Sheet1!$B$18=TRUE,E141,a) -> -1.434131737 | L141: =IF(Sheet1!$B$18=TRUE,F141,0) -> 18.19336019 | M141: =IF(Sheet1!$B$20=TRUE,$E141,a) -> -1.434131737 | N141: =IF(Sheet1!$B$20=TRUE,G141,0) -> -51.62051974 | O141: =IF(Sheet1!$B$22=TRUE,$E141,a) -> -3.5 | P141: =IF(Sheet1!$B$22=TRUE,H141,0) -> 0 | Q141: =IF(Sheet1!$B$24=TRUE,$E141,a) -> -1.434131737 | R141: =IF(Sheet1!$B$24=TRUE,I141,0) -> 114.2423536
E142: =E141+Sheet2!B$3 -> -1.42 | F142: 17.42419186 | G142: -51.13616313 | H142: 33.19373788 | I142: 110.9609523 | K142: =IF(Sheet1!$B$18=TRUE,E142,a) -> -1.419161677 | L142: =IF(Sheet1!$B$18=TRUE,F142,0) -> 17.42419186 | M142: =IF(Sheet1!$B$20=TRUE,$E142,a) -> -1.419161677 | N142: =IF(Sheet1!$B$20=TRUE,G142,0) -> -51.13616313 | O142: =IF(Sheet1!$B$22=TRUE,$E142,a) -> -3.5 | P142: =IF(Sheet1!$B$22=TRUE,H142,0) -> 0 | Q142: =IF(Sheet1!$B$24=TRUE,$E142,a) -> -1.419161677 | R142: =IF(Sheet1!$B$24=TRUE,I142,0) -> 110.9609523
E143: =E142+Sheet2!B$3 -> -1.40 | F143: 16.66246143 | G143: -50.62693937 | H143: 34.83043633 | I143: 107.7064434 | K143: =IF(Sheet1!$B$18=TRUE,E143,a) -> -1.404191617 | L143: =IF(Sheet1!$B$18=TRUE,F143,0) -> 16.66246143 | M143: =IF(Sheet1!$B$20=TRUE,$E143,a) -> -1.404191617 | N143: =IF(Sheet1!$B$20=TRUE,G143,0) -> -50.62693937 | O143: =IF(Sheet1!$B$22=TRUE,$E143,a) -> -3.5 | P143: =IF(Sheet1!$B$22=TRUE,H143,0) -> 0 | Q143: =IF(Sheet1!$B$24=TRUE,$E143,a) -> -1.404191617 | R143: =IF(Sheet1!$B$24=TRUE,I143,0) -> 107.7064434
E144: =E143+Sheet2!B$3 -> -1.39 | F144: 15.90853568 | G144: -50.0935778 | H144: 36.41861589 | I144: 104.4788268 | K144: =IF(Sheet1!$B$18=TRUE,E144,a) -> -1.389221557 | L144: =IF(Sheet1!$B$18=TRUE,F144,0) -> 15.90853568 | M144: =IF(Sheet1!$B$20=TRUE,$E144,a) -> -1.389221557 | N144: =IF(Sheet1!$B$20=TRUE,G144,0) -> -50.0935778 | O144: =IF(Sheet1!$B$22=TRUE,$E144,a) -> -3.5 | P144: =IF(Sheet1!$B$22=TRUE,H144,0) -> 0 | Q144: =IF(Sheet1!$B$24=TRUE,$E144,a) -> -1.389221557 | R144: =IF(Sheet1!$B$24=TRUE,I144,0) -> 104.4788268
E145: =E144+Sheet2!B$3 -> -1.37 | F145: 15.16277055 | G145: -49.53680175 | H145: 37.95867911 | I145: 101.2781025 | K145: =IF(Sheet1!$B$18=TRUE,E145,a) -> -1.374251497 | L145: =IF(Sheet1!$B$18=TRUE,F145,0) -> 15.16277055 | M145: =IF(Sheet1!$B$20=TRUE,$E145,a) -> -1.374251497 | N145: =IF(Sheet1!$B$20=TRUE,G145,0) -> -49.53680175 | O145: =IF(Sheet1!$B$22=TRUE,$E145,a) -> -3.5 | P145: =IF(Sheet1!$B$22=TRUE,H145,0) -> 0 | Q145: =IF(Sheet1!$B$24=TRUE,$E145,a) -> -1.374251497 | R145: =IF(Sheet1!$B$24=TRUE,I145,0) -> 101.2781025
E146: =E145+Sheet2!B$3 -> -1.36 | F146: 14.42551116 | G146: -48.9573285 | H146: 39.4510286 | I146: 98.1042705 | K146: =IF(Sheet1!$B$18=TRUE,E146,a) -> -1.359281437 | L146: =IF(Sheet1!$B$18=TRUE,F146,0) -> 14.42551116 | M146: =IF(Sheet1!$B$20=TRUE,$E146,a) -> -1.359281437 | N146: =IF(Sheet1!$B$20=TRUE,G146,0) -> -48.9573285 | O146: =IF(Sheet1!$B$22=TRUE,$E146,a) -> -3.5 | P146: =IF(Sheet1!$B$22=TRUE,H146,0) -> 0 | Q146: =IF(Sheet1!$B$24=TRUE,$E146,a) -> -1.359281437 | R146: =IF(Sheet1!$B$24=TRUE,I146,0) -> 98.1042705
E147: =E146+Sheet2!B$3 -> -1.34 | F147: 13.69709198 | G147: -48.35586931 | H147: 40.89606691 | I147: 94.95733085 | K147: =IF(Sheet1!$B$18=TRUE,E147,a) -> -1.344311377 | L147: =IF(Sheet1!$B$18=TRUE,F147,0) -> 13.69709198 | M147: =IF(Sheet1!$B$20=TRUE,$E147,a) -> -1.344311377 | N147: =IF(Sheet1!$B$20=TRUE,G147,0) -> -48.35586931 | O147: =IF(Sheet1!$B$22=TRUE,$E147,a) -> -3.5 | P147: =IF(Sheet1!$B$22=TRUE,H147,0) -> 0 | Q147: =IF(Sheet1!$B$24=TRUE,$E147,a) -> -1.344311377 | R147: =IF(Sheet1!$B$24=TRUE,I147,0) -> 94.95733085
E148: =E147+Sheet2!B$3 -> -1.33 | F148: 12.97783684 | G148: -47.73312943 | H148: 42.29419665 | I148: 91.83728352 | K148: =IF(Sheet1!$B$18=TRUE,E148,a) -> -1.329341317 | L148: =IF(Sheet1!$B$18=TRUE,F148,0) -> 12.97783684 | M148: =IF(Sheet1!$B$20=TRUE,$E148,a) -> -1.329341317 | N148: =IF(Sheet1!$B$20=TRUE,G148,0) -> -47.73312943 | O148: =IF(Sheet1!$B$22=TRUE,$E148,a) -> -3.5 | P148: =IF(Sheet1!$B$22=TRUE,H148,0) -> 0 | Q148: =IF(Sheet1!$B$24=TRUE,$E148,a) -> -1.329341317 | R148: =IF(Sheet1!$B$24=TRUE,I148,0) -> 91.83728352
E149: =E148+Sheet2!B$3 -> -1.31 | F149: 12.26805907 | G149: -47.08980806 | H149: 43.64582037 | I149: 88.74412851 | K149: =IF(Sheet1!$B$18=TRUE,E149,a) -> -1.314371257 | L149: =IF(Sheet1!$B$18=TRUE,F149,0) -> 12.26805907 | M149: =IF(Sheet1!$B$20=TRUE,$E149,a) -> -1.314371257 | N149: =IF(Sheet1!$B$20=TRUE,G149,0) -> -47.08980806 | O149: =IF(Sheet1!$B$22=TRUE,$E149,a) -> -3.5 | P149: =IF(Sheet1!$B$22=TRUE,H149,0) -> 0 | Q149: =IF(Sheet1!$B$24=TRUE,$E149,a) -> -1.314371257 | R149: =IF(Sheet1!$B$24=TRUE,I149,0) -> 88.74412851
E150: =E149+Sheet2!B$3 -> -1.30 | F150: 11.56806159 | G150: -46.4265984 | H150: 44.95134068 | I150: 85.67786583 | K150: =IF(Sheet1!$B$18=TRUE,E150,a) -> -1.299401198 | L150: =IF(Sheet1!$B$18=TRUE,F150,0) -> 11.56806159 | M150: =IF(Sheet1!$B$20=TRUE,$E150,a) -> -1.299401198 | N150: =IF(Sheet1!$B$20=TRUE,G150,0) -> -46.4265984 | O150: =IF(Sheet1!$B$22=TRUE,$E150,a) -> -3.5 | P150: =IF(Sheet1!$B$22=TRUE,H150,0) -> 0 | Q150: =IF(Sheet1!$B$24=TRUE,$E150,a) -> -1.299401198 | R150: =IF(Sheet1!$B$24=TRUE,I150,0) -> 85.67786583
E151: =E150+Sheet2!B$3 -> -1.28 | F151: 10.87813697 | G151: -45.74418759 | H151: 46.21116013 | I151: 82.63849546 | K151: =IF(Sheet1!$B$18=TRUE,E151,a) -> -1.284431138 | L151: =IF(Sheet1!$B$18=TRUE,F151,0) -> 10.87813697 | M151: =IF(Sheet1!$B$20=TRUE,$E151,a) -> -1.284431138 | N151: =IF(Sheet1!$B$20=TRUE,G151,0) -> -45.74418759 | O151: =IF(Sheet1!$B$22=TRUE,$E151,a) -> -3.5 | P151: =IF(Sheet1!$B$22=TRUE,H151,0) -> 0 | Q151: =IF(Sheet1!$B$24=TRUE,$E151,a) -> -1.284431138 | R151: =IF(Sheet1!$B$24=TRUE,I151,0) -> 82.63849546
E152: =E151+Sheet2!B$3 -> -1.27 | F152: 10.19856755 | G152: -45.04325677 | H152: 47.42568132 | I152: 79.62601743 | K152: =IF(Sheet1!$B$18=TRUE,E152,a) -> -1.269461078 | L152: =IF(Sheet1!$B$18=TRUE,F152,0) -> 10.19856755 | M152: =IF(Sheet1!$B$20=TRUE,$E152,a) -> -1.269461078 | N152: =IF(Sheet1!$B$20=TRUE,G152,0) -> -45.04325677 | O152: =IF(Sheet1!$B$22=TRUE,$E152,a) -> -3.5 | P152: =IF(Sheet1!$B$22=TRUE,H152,0) -> 0 | Q152: =IF(Sheet1!$B$24=TRUE,$E152,a) -> -1.269461078 | R152: =IF(Sheet1!$B$24=TRUE,I152,0) -> 79.62601743
E153: =E152+Sheet2!B$3 -> -1.25 | F153: 9.529625509 | G153: -44.32448104 | H153: 48.59530682 | I153: 76.64043171 | K153: =IF(Sheet1!$B$18=TRUE,E153,a) -> -1.254491018 | L153: =IF(Sheet1!$B$18=TRUE,F153,0) -> 9.529625509 | M153: =IF(Sheet1!$B$20=TRUE,$E153,a) -> -1.254491018 | N153: =IF(Sheet1!$B$20=TRUE,G153,0) -> -44.32448104 | O153: =IF(Sheet1!$B$22=TRUE,$E153,a) -> -3.5 | P153: =IF(Sheet1!$B$22=TRUE,H153,0) -> 0 | Q153: =IF(Sheet1!$B$24=TRUE,$E153,a) -> -1.254491018 | R153: =IF(Sheet1!$B$24=TRUE,I153,0) -> 76.64043171
E154: =E153+Sheet2!B$3 -> -1.24 | F154: 8.871572981 | G154: -43.58852948 | H154: 49.72043922 | I154: 73.68173832 | K154: =IF(Sheet1!$B$18=TRUE,E154,a) -> -1.239520958 | L154: =IF(Sheet1!$B$18=TRUE,F154,0) -> 8.871572981 | M154: =IF(Sheet1!$B$20=TRUE,$E154,a) -> -1.239520958 | N154: =IF(Sheet1!$B$20=TRUE,G154,0) -> -43.58852948 | O154: =IF(Sheet1!$B$22=TRUE,$E154,a) -> -3.5 | P154: =IF(Sheet1!$B$22=TRUE,H154,0) -> 0 | Q154: =IF(Sheet1!$B$24=TRUE,$E154,a) -> -1.239520958 | R154: =IF(Sheet1!$B$24=TRUE,I154,0) -> 73.68173832
E155: =E154+Sheet2!B$3 -> -1.22 | F155: 8.224662114 | G155: -42.83606515 | H155: 50.80148109 | I155: 70.74993725 | K155: =IF(Sheet1!$B$18=TRUE,E155,a) -> -1.224550898 | L155: =IF(Sheet1!$B$18=TRUE,F155,0) -> 8.224662114 | M155: =IF(Sheet1!$B$20=TRUE,$E155,a) -> -1.224550898 | N155: =IF(Sheet1!$B$20=TRUE,G155,0) -> -42.83606515 | O155: =IF(Sheet1!$B$22=TRUE,$E155,a) -> -3.5 | P155: =IF(Sheet1!$B$22=TRUE,H155,0) -> 0 | Q155: =IF(Sheet1!$B$24=TRUE,$E155,a) -> -1.224550898 | R155: =IF(Sheet1!$B$24=TRUE,I155,0) -> 70.74993725
E156: =E155+Sheet2!B$3 -> -1.21 | F156: 7.58913518 | G156: -42.06774506 | H156: 51.83883501 | I156: 67.84502851 | K156: =IF(Sheet1!$B$18=TRUE,E156,a) -> -1.209580838 | L156: =IF(Sheet1!$B$18=TRUE,F156,0) -> 7.58913518 | M156: =IF(Sheet1!$B$20=TRUE,$E156,a) -> -1.209580838 | N156: =IF(Sheet1!$B$20=TRUE,G156,0) -> -42.06774506 | O156: =IF(Sheet1!$B$22=TRUE,$E156,a) -> -3.5 | P156: =IF(Sheet1!$B$22=TRUE,H156,0) -> 0 | Q156: =IF(Sheet1!$B$24=TRUE,$E156,a) -> -1.209580838 | R156: =IF(Sheet1!$B$24=TRUE,I156,0) -> 67.84502851
E157: =E156+Sheet2!B$3 -> -1.19 | F157: 6.96522466 | G157: -41.28422021 | H157: 52.83290356 | I157: 64.96701208 | K157: =IF(Sheet1!$B$18=TRUE,E157,a) -> -1.194610778 | L157: =IF(Sheet1!$B$18=TRUE,F157,0) -> 6.96522466 | M157: =IF(Sheet1!$B$20=TRUE,$E157,a) -> -1.194610778 | N157: =IF(Sheet1!$B$20=TRUE,G157,0) -> -41.28422021 | O157: =IF(Sheet1!$B$22=TRUE,$E157,a) -> -3.5 | P157: =IF(Sheet1!$B$22=TRUE,H157,0) -> 0 | Q157: =IF(Sheet1!$B$24=TRUE,$E157,a) -> -1.194610778 | R157: =IF(Sheet1!$B$24=TRUE,I157,0) -> 64.96701208
E158: =E157+Sheet2!B$3 -> -1.18 | F158: 6.353153335 | G158: -40.48613559 | H158: 53.78408932 | I158: 62.11588798 | K158: =IF(Sheet1!$B$18=TRUE,E158,a) -> -1.179640719 | L158: =IF(Sheet1!$B$18=TRUE,F158,0) -> 6.353153335 | M158: =IF(Sheet1!$B$20=TRUE,$E158,a) -> -1.179640719 | N158: =IF(Sheet1!$B$20=TRUE,G158,0) -> -40.48613559 | O158: =IF(Sheet1!$B$22=TRUE,$E158,a) -> -3.5 | P158: =IF(Sheet1!$B$22=TRUE,H158,0) -> 0 | Q158: =IF(Sheet1!$B$24=TRUE,$E158,a) -> -1.179640719 | R158: =IF(Sheet1!$B$24=TRUE,I158,0) -> 62.11588798
E159: =E158+Sheet2!B$3 -> -1.16 | F159: 5.753134376 | G159: -39.67413012 | H159: 54.69279488 | I159: 59.29165621 | K159: =IF(Sheet1!$B$18=TRUE,E159,a) -> -1.164670659 | L159: =IF(Sheet1!$B$18=TRUE,F159,0) -> 5.753134376 | M159: =IF(Sheet1!$B$20=TRUE,$E159,a) -> -1.164670659 | N159: =IF(Sheet1!$B$20=TRUE,G159,0) -> -39.67413012 | O159: =IF(Sheet1!$B$22=TRUE,$E159,a) -> -3.5 | P159: =IF(Sheet1!$B$22=TRUE,H159,0) -> 0 | Q159: =IF(Sheet1!$B$24=TRUE,$E159,a) -> -1.164670659 | R159: =IF(Sheet1!$B$24=TRUE,I159,0) -> 59.29165621
E160: =E159+Sheet2!B$3 -> -1.15 | F160: 5.165371434 | G160: -38.84883673 | H160: 55.5594228 | I160: 56.49431676 | K160: =IF(Sheet1!$B$18=TRUE,E160,a) -> -1.149700599 | L160: =IF(Sheet1!$B$18=TRUE,F160,0) -> 5.165371434 | M160: =IF(Sheet1!$B$20=TRUE,$E160,a) -> -1.149700599 | N160: =IF(Sheet1!$B$20=TRUE,G160,0) -> -38.84883673 | O160: =IF(Sheet1!$B$22=TRUE,$E160,a) -> -3.5 | P160: =IF(Sheet1!$B$22=TRUE,H160,0) -> 0 | Q160: =IF(Sheet1!$B$24=TRUE,$E160,a) -> -1.149700599 | R160: =IF(Sheet1!$B$24=TRUE,I160,0) -> 56.49431676
E161: =E160+Sheet2!B$3 -> -1.13 | F161: 4.59005873 | G161: -38.0108823 | H161: 56.38437568 | I161: 53.72386963 | K161: =IF(Sheet1!$B$18=TRUE,E161,a) -> -1.134730539 | L161: =IF(Sheet1!$B$18=TRUE,F161,0) -> 4.59005873 | M161: =IF(Sheet1!$B$20=TRUE,$E161,a) -> -1.134730539 | N161: =IF(Sheet1!$B$20=TRUE,G161,0) -> -38.0108823 | O161: =IF(Sheet1!$B$22=TRUE,$E161,a) -> -3.5 | P161: =IF(Sheet1!$B$22=TRUE,H161,0) -> 0 | Q161: =IF(Sheet1!$B$24=TRUE,$E161,a) -> -1.134730539 | R161: =IF(Sheet1!$B$24=TRUE,I161,0) -> 53.72386963
E162: =E161+Sheet2!B$3 -> -1.12 | F162: 4.027381146 | G162: -37.16088772 | H162: 57.16805609 | I162: 50.98031482 | K162: =IF(Sheet1!$B$18=TRUE,E162,a) -> -1.119760479 | L162: =IF(Sheet1!$B$18=TRUE,F162,0) -> 4.027381146 | M162: =IF(Sheet1!$B$20=TRUE,$E162,a) -> -1.119760479 | N162: =IF(Sheet1!$B$20=TRUE,G162,0) -> -37.16088772 | O162: =IF(Sheet1!$B$22=TRUE,$E162,a) -> -3.5 | P162: =IF(Sheet1!$B$22=TRUE,H162,0) -> 0 | Q162: =IF(Sheet1!$B$24=TRUE,$E162,a) -> -1.119760479 | R162: =IF(Sheet1!$B$24=TRUE,I162,0) -> 50.98031482
E163: =E162+Sheet2!B$3 -> -1.10 | F163: 3.477514313 | G163: -36.2994678 | H163: 57.9108666 | I163: 48.26365234 | K163: =IF(Sheet1!$B$18=TRUE,E163,a) -> -1.104790419 | L163: =IF(Sheet1!$B$18=TRUE,F163,0) -> 3.477514313 | M163: =IF(Sheet1!$B$20=TRUE,$E163,a) -> -1.104790419 | N163: =IF(Sheet1!$B$20=TRUE,G163,0) -> -36.2994678 | O163: =IF(Sheet1!$B$22=TRUE,$E163,a) -> -3.5 | P163: =IF(Sheet1!$B$22=TRUE,H163,0) -> 0 | Q163: =IF(Sheet1!$B$24=TRUE,$E163,a) -> -1.104790419 | R163: =IF(Sheet1!$B$24=TRUE,I163,0) -> 48.26365234
E164: =E163+Sheet2!B$3 -> -1.09 | F164: 2.940624706 | G164: -35.42723137 | H164: 58.61320981 | I164: 45.57388218 | K164: =IF(Sheet1!$B$18=TRUE,E164,a) -> -1.089820359 | L164: =IF(Sheet1!$B$18=TRUE,F164,0) -> 2.940624706 | M164: =IF(Sheet1!$B$20=TRUE,$E164,a) -> -1.089820359 | N164: =IF(Sheet1!$B$20=TRUE,G164,0) -> -35.42723137 | O164: =IF(Sheet1!$B$22=TRUE,$E164,a) -> -3.5 | P164: =IF(Sheet1!$B$22=TRUE,H164,0) -> 0 | Q164: =IF(Sheet1!$B$24=TRUE,$E164,a) -> -1.089820359 | R164: =IF(Sheet1!$B$24=TRUE,I164,0) -> 45.57388218
E165: =E164+Sheet2!B$3 -> -1.07 | F165: 2.416869729 | G165: -34.5447812 | H165: 59.27548829 | I165: 42.91100434 | K165: =IF(Sheet1!$B$18=TRUE,E165,a) -> -1.074850299 | L165: =IF(Sheet1!$B$18=TRUE,F165,0) -> 2.416869729 | M165: =IF(Sheet1!$B$20=TRUE,$E165,a) -> -1.074850299 | N165: =IF(Sheet1!$B$20=TRUE,G165,0) -> -34.5447812 | O165: =IF(Sheet1!$B$22=TRUE,$E165,a) -> -3.5 | P165: =IF(Sheet1!$B$22=TRUE,H165,0) -> 0 | Q165: =IF(Sheet1!$B$24=TRUE,$E165,a) -> -1.074850299 | R165: =IF(Sheet1!$B$24=TRUE,I165,0) -> 42.91100434
E166: =E165+Sheet2!B$3 -> -1.06 | F166: 1.906397808 | G166: -33.65271406 | H166: 59.89810461 | I166: 40.27501882 | K166: =IF(Sheet1!$B$18=TRUE,E166,a) -> -1.05988024 | L166: =IF(Sheet1!$B$18=TRUE,F166,0) -> 1.906397808 | M166: =IF(Sheet1!$B$20=TRUE,$E166,a) -> -1.05988024 | N166: =IF(Sheet1!$B$20=TRUE,G166,0) -> -33.65271406 | O166: =IF(Sheet1!$B$22=TRUE,$E166,a) -> -3.5 | P166: =IF(Sheet1!$B$22=TRUE,H166,0) -> 0 | Q166: =IF(Sheet1!$B$24=TRUE,$E166,a) -> -1.05988024 | R166: =IF(Sheet1!$B$24=TRUE,I166,0) -> 40.27501882
E167: =E166+Sheet2!B$3 -> -1.04 | F167: 1.40934848 | G167: -32.75162068 | H167: 60.48146137 | I167: 37.66592563 | K167: =IF(Sheet1!$B$18=TRUE,E167,a) -> -1.04491018 | L167: =IF(Sheet1!$B$18=TRUE,F167,0) -> 1.40934848 | M167: =IF(Sheet1!$B$20=TRUE,$E167,a) -> -1.04491018 | N167: =IF(Sheet1!$B$20=TRUE,G167,0) -> -32.75162068 | O167: =IF(Sheet1!$B$22=TRUE,$E167,a) -> -3.5 | P167: =IF(Sheet1!$B$22=TRUE,H167,0) -> 0 | Q167: =IF(Sheet1!$B$24=TRUE,$E167,a) -> -1.04491018 | R167: =IF(Sheet1!$B$24=TRUE,I167,0) -> 37.66592563
E168: =E167+Sheet2!B$3 -> -1.03 | F168: 0.9258524846 | G168: -31.84208576 | H168: 61.02596113 | I168: 35.08372477 | K168: =IF(Sheet1!$B$18=TRUE,E168,a) -> -1.02994012 | L168: =IF(Sheet1!$B$18=TRUE,F168,0) -> 0.9258524846 | M168: =IF(Sheet1!$B$20=TRUE,$E168,a) -> -1.02994012 | N168: =IF(Sheet1!$B$20=TRUE,G168,0) -> -31.84208576 | O168: =IF(Sheet1!$B$22=TRUE,$E168,a) -> -3.5 | P168: =IF(Sheet1!$B$22=TRUE,H168,0) -> 0 | Q168: =IF(Sheet1!$B$24=TRUE,$E168,a) -> -1.02994012 | R168: =IF(Sheet1!$B$24=TRUE,I168,0) -> 35.08372477
E169: =E168+Sheet2!B$3 -> -1.01 | F169: 0.4560318534 | G169: -30.92468799 | H169: 61.53200648 | I169: 32.52841622 | K169: =IF(Sheet1!$B$18=TRUE,E169,a) -> -1.01497006 | L169: =IF(Sheet1!$B$18=TRUE,F169,0) -> 0.4560318534 | M169: =IF(Sheet1!$B$20=TRUE,$E169,a) -> -1.01497006 | N169: =IF(Sheet1!$B$20=TRUE,G169,0) -> -30.92468799 | O169: =IF(Sheet1!$B$22=TRUE,$E169,a) -> -3.5 | P169: =IF(Sheet1!$B$22=TRUE,H169,0) -> 0 | Q169: =IF(Sheet1!$B$24=TRUE,$E169,a) -> -1.01497006 | R169: =IF(Sheet1!$B$24=TRUE,I169,0) -> 32.52841622
E170: =E169+Sheet2!B$3 -> -1.00 | F170: 3.517186542e-13 | G170: -30 | H170: 62 | I170: 30 | K170: =IF(Sheet1!$B$18=TRUE,E170,a) -> -1 | L170: =IF(Sheet1!$B$18=TRUE,F170,0) -> 3.517186542e-13 | M170: =IF(Sheet1!$B$20=TRUE,$E170,a) -> -1 | N170: =IF(Sheet1!$B$20=TRUE,G170,0) -> -30 | O170: =IF(Sheet1!$B$22=TRUE,$E170,a) -> -3.5 | P170: =IF(Sheet1!$B$22=TRUE,H170,0) -> 0 | Q170: =IF(Sheet1!$B$24=TRUE,$E170,a) -> -1 | R170: =IF(Sheet1!$B$24=TRUE,I170,0) -> 30
E171: =E170+Sheet2!B$3 -> -0.99 | F171: -0.4421381896 | G171: -29.06858843 | H171: 62.43034427 | I171: 27.4984761 | K171: =IF(Sheet1!$B$18=TRUE,E171,a) -> -0.9850299401 | L171: =IF(Sheet1!$B$18=TRUE,F171,0) -> -0.4421381896 | M171: =IF(Sheet1!$B$20=TRUE,$E171,a) -> -0.9850299401 | N171: =IF(Sheet1!$B$20=TRUE,G171,0) -> -29.06858843 | O171: =IF(Sheet1!$B$22=TRUE,$E171,a) -> -3.5 | P171: =IF(Sheet1!$B$22=TRUE,H171,0) -> 0 | Q171: =IF(Sheet1!$B$24=TRUE,$E171,a) -> -0.9850299401 | R171: =IF(Sheet1!$B$24=TRUE,I171,0) -> 27.4984761
E172: =E171+Sheet2!B$3 -> -0.97 | F172: -0.8702862665 | G172: -28.13101388 | H172: 62.82344186 | I172: 25.02384453 | K172: =IF(Sheet1!$B$18=TRUE,E172,a) -> -0.9700598802 | L172: =IF(Sheet1!$B$18=TRUE,F172,0) -> -0.8702862665 | M172: =IF(Sheet1!$B$20=TRUE,$E172,a) -> -0.9700598802 | N172: =IF(Sheet1!$B$20=TRUE,G172,0) -> -28.13101388 | O172: =IF(Sheet1!$B$22=TRUE,$E172,a) -> -3.5 | P172: =IF(Sheet1!$B$22=TRUE,H172,0) -> 0 | Q172: =IF(Sheet1!$B$24=TRUE,$E172,a) -> -0.9700598802 | R172: =IF(Sheet1!$B$24=TRUE,I172,0) -> 25.02384453
E173: =E172+Sheet2!B$3 -> -0.96 | F173: -1.284356129 | G173: -27.18783091 | H173: 63.17969536 | I173: 22.57610527 | K173: =IF(Sheet1!$B$18=TRUE,E173,a) -> -0.9550898204 | L173: =IF(Sheet1!$B$18=TRUE,F173,0) -> -1.284356129 | M173: =IF(Sheet1!$B$20=TRUE,$E173,a) -> -0.9550898204 | N173: =IF(Sheet1!$B$20=TRUE,G173,0) -> -27.18783091 | O173: =IF(Sheet1!$B$22=TRUE,$E173,a) -> -3.5 | P173: =IF(Sheet1!$B$22=TRUE,H173,0) -> 0 | Q173: =IF(Sheet1!$B$24=TRUE,$E173,a) -> -0.9550898204 | R173: =IF(Sheet1!$B$24=TRUE,I173,0) -> 22.57610527
E174: =E173+Sheet2!B$3 -> -0.94 | F174: -1.684267932 | G174: -26.23958808 | H174: 63.49950735 | I174: 20.15525835 | K174: =IF(Sheet1!$B$18=TRUE,E174,a) -> -0.9401197605 | L174: =IF(Sheet1!$B$18=TRUE,F174,0) -> -1.684267932 | M174: =IF(Sheet1!$B$20=TRUE,$E174,a) -> -0.9401197605 | N174: =IF(Sheet1!$B$20=TRUE,G174,0) -> -26.23958808 | O174: =IF(Sheet1!$B$22=TRUE,$E174,a) -> -3.5 | P174: =IF(Sheet1!$B$22=TRUE,H174,0) -> 0 | Q174: =IF(Sheet1!$B$24=TRUE,$E174,a) -> -0.9401197605 | R174: =IF(Sheet1!$B$24=TRUE,I174,0) -> 20.15525835
E175: =E174+Sheet2!B$3 -> -0.93 | F175: -2.069949998 | G175: -25.28682789 | H175: 63.7832804 | I175: 17.76130374 | K175: =IF(Sheet1!$B$18=TRUE,E175,a) -> -0.9251497006 | L175: =IF(Sheet1!$B$18=TRUE,F175,0) -> -2.069949998 | M175: =IF(Sheet1!$B$20=TRUE,$E175,a) -> -0.9251497006 | N175: =IF(Sheet1!$B$20=TRUE,G175,0) -> -25.28682789 | O175: =IF(Sheet1!$B$22=TRUE,$E175,a) -> -3.5 | P175: =IF(Sheet1!$B$22=TRUE,H175,0) -> 0 | Q175: =IF(Sheet1!$B$24=TRUE,$E175,a) -> -0.9251497006 | R175: =IF(Sheet1!$B$24=TRUE,I175,0) -> 17.76130374
E176: =E175+Sheet2!B$3 -> -0.91 | F176: -2.441338724 | G176: -24.33008685 | H176: 64.0314171 | I176: 15.39424146 | K176: =IF(Sheet1!$B$18=TRUE,E176,a) -> -0.9101796407 | L176: =IF(Sheet1!$B$18=TRUE,F176,0) -> -2.441338724 | M176: =IF(Sheet1!$B$20=TRUE,$E176,a) -> -0.9101796407 | N176: =IF(Sheet1!$B$20=TRUE,G176,0) -> -24.33008685 | O176: =IF(Sheet1!$B$22=TRUE,$E176,a) -> -3.5 | P176: =IF(Sheet1!$B$22=TRUE,H176,0) -> 0 | Q176: =IF(Sheet1!$B$24=TRUE,$E176,a) -> -0.9101796407 | R176: =IF(Sheet1!$B$24=TRUE,I176,0) -> 15.39424146
E177: =E176+Sheet2!B$3 -> -0.90 | F177: -2.798378495 | G177: -23.36989541 | H177: 64.24432003 | I177: 13.0540715 | K177: =IF(Sheet1!$B$18=TRUE,E177,a) -> -0.8952095808 | L177: =IF(Sheet1!$B$18=TRUE,F177,0) -> -2.798378495 | M177: =IF(Sheet1!$B$20=TRUE,$E177,a) -> -0.8952095808 | N177: =IF(Sheet1!$B$20=TRUE,G177,0) -> -23.36989541 | O177: =IF(Sheet1!$B$22=TRUE,$E177,a) -> -3.5 | P177: =IF(Sheet1!$B$22=TRUE,H177,0) -> 0 | Q177: =IF(Sheet1!$B$24=TRUE,$E177,a) -> -0.8952095808 | R177: =IF(Sheet1!$B$24=TRUE,I177,0) -> 13.0540715
E178: =E177+Sheet2!B$3 -> -0.88 | F178: -3.141021592 | G178: -22.40677802 | H178: 64.42239176 | I178: 10.74079386 | K178: =IF(Sheet1!$B$18=TRUE,E178,a) -> -0.880239521 | L178: =IF(Sheet1!$B$18=TRUE,F178,0) -> -3.141021592 | M178: =IF(Sheet1!$B$20=TRUE,$E178,a) -> -0.880239521 | N178: =IF(Sheet1!$B$20=TRUE,G178,0) -> -22.40677802 | O178: =IF(Sheet1!$B$22=TRUE,$E178,a) -> -3.5 | P178: =IF(Sheet1!$B$22=TRUE,H178,0) -> 0 | Q178: =IF(Sheet1!$B$24=TRUE,$E178,a) -> -0.880239521 | R178: =IF(Sheet1!$B$24=TRUE,I178,0) -> 10.74079386
E179: =E178+Sheet2!B$3 -> -0.87 | F179: -3.4692281 | G179: -21.44125309 | H179: 64.56603488 | I179: 8.454408548 | K179: =IF(Sheet1!$B$18=TRUE,E179,a) -> -0.8652694611 | L179: =IF(Sheet1!$B$18=TRUE,F179,0) -> -3.4692281 | M179: =IF(Sheet1!$B$20=TRUE,$E179,a) -> -0.8652694611 | N179: =IF(Sheet1!$B$20=TRUE,G179,0) -> -21.44125309 | O179: =IF(Sheet1!$B$22=TRUE,$E179,a) -> -3.5 | P179: =IF(Sheet1!$B$22=TRUE,H179,0) -> 0 | Q179: =IF(Sheet1!$B$24=TRUE,$E179,a) -> -0.8652694611 | R179: =IF(Sheet1!$B$24=TRUE,I179,0) -> 8.454408548
E180: =E179+Sheet2!B$3 -> -0.85 | F180: -3.782965821 | G180: -20.47383299 | H180: 64.67565196 | I180: 6.194915558 | K180: =IF(Sheet1!$B$18=TRUE,E180,a) -> -0.8502994012 | L180: =IF(Sheet1!$B$18=TRUE,F180,0) -> -3.782965821 | M180: =IF(Sheet1!$B$20=TRUE,$E180,a) -> -0.8502994012 | N180: =IF(Sheet1!$B$20=TRUE,G180,0) -> -20.47383299 | O180: =IF(Sheet1!$B$22=TRUE,$E180,a) -> -3.5 | P180: =IF(Sheet1!$B$22=TRUE,H180,0) -> 0 | Q180: =IF(Sheet1!$B$24=TRUE,$E180,a) -> -0.8502994012 | R180: =IF(Sheet1!$B$24=TRUE,I180,0) -> 6.194915558
E181: =E180+Sheet2!B$3 -> -0.84 | F181: -4.082210183 | G181: -19.5050241 | H181: 64.75164558 | I181: 3.962314891 | K181: =IF(Sheet1!$B$18=TRUE,E181,a) -> -0.8353293413 | L181: =IF(Sheet1!$B$18=TRUE,F181,0) -> -4.082210183 | M181: =IF(Sheet1!$B$20=TRUE,$E181,a) -> -0.8353293413 | N181: =IF(Sheet1!$B$20=TRUE,G181,0) -> -19.5050241 | O181: =IF(Sheet1!$B$22=TRUE,$E181,a) -> -3.5 | P181: =IF(Sheet1!$B$22=TRUE,H181,0) -> 0 | Q181: =IF(Sheet1!$B$24=TRUE,$E181,a) -> -0.8353293413 | R181: =IF(Sheet1!$B$24=TRUE,I181,0) -> 3.962314891
E182: =E181+Sheet2!B$3 -> -0.82 | F182: -4.366944146 | G182: -18.53532674 | H182: 64.79441833 | I182: 1.756606547 | K182: =IF(Sheet1!$B$18=TRUE,E182,a) -> -0.8203592814 | L182: =IF(Sheet1!$B$18=TRUE,F182,0) -> -4.366944146 | M182: =IF(Sheet1!$B$20=TRUE,$E182,a) -> -0.8203592814 | N182: =IF(Sheet1!$B$20=TRUE,G182,0) -> -18.53532674 | O182: =IF(Sheet1!$B$22=TRUE,$E182,a) -> -3.5 | P182: =IF(Sheet1!$B$22=TRUE,H182,0) -> 0 | Q182: =IF(Sheet1!$B$24=TRUE,$E182,a) -> -0.8203592814 | R182: =IF(Sheet1!$B$24=TRUE,I182,0) -> 1.756606547
E183: =E182+Sheet2!B$3 -> -0.81 | F183: -4.637158119 | G183: -17.56523522 | H183: 64.80437279 | I183: -0.4222094733 | K183: =IF(Sheet1!$B$18=TRUE,E183,a) -> -0.8053892216 | L183: =IF(Sheet1!$B$18=TRUE,F183,0) -> -4.637158119 | M183: =IF(Sheet1!$B$20=TRUE,$E183,a) -> -0.8053892216 | N183: =IF(Sheet1!$B$20=TRUE,G183,0) -> -17.56523522 | O183: =IF(Sheet1!$B$22=TRUE,$E183,a) -> -3.5 | P183: =IF(Sheet1!$B$22=TRUE,H183,0) -> 0 | Q183: =IF(Sheet1!$B$24=TRUE,$E183,a) -> -0.8053892216 | R183: =IF(Sheet1!$B$24=TRUE,I183,0) -> -0.4222094733
E184: =E183+Sheet2!B$3 -> -0.79 | F184: -4.892849863 | G184: -16.59523782 | H184: 64.78191153 | I184: -2.574133171 | K184: =IF(Sheet1!$B$18=TRUE,E184,a) -> -0.7904191617 | L184: =IF(Sheet1!$B$18=TRUE,F184,0) -> -4.892849863 | M184: =IF(Sheet1!$B$20=TRUE,$E184,a) -> -0.7904191617 | N184: =IF(Sheet1!$B$20=TRUE,G184,0) -> -16.59523782 | O184: =IF(Sheet1!$B$22=TRUE,$E184,a) -> -3.5 | P184: =IF(Sheet1!$B$22=TRUE,H184,0) -> 0 | Q184: =IF(Sheet1!$B$24=TRUE,$E184,a) -> -0.7904191617 | R184: =IF(Sheet1!$B$24=TRUE,I184,0) -> -2.574133171
E185: =E184+Sheet2!B$3 -> -0.78 | F185: -5.134024404 | G185: -15.62581678 | H185: 64.72743713 | I185: -4.699164545 | K185: =IF(Sheet1!$B$18=TRUE,E185,a) -> -0.7754491018 | L185: =IF(Sheet1!$B$18=TRUE,F185,0) -> -5.134024404 | M185: =IF(Sheet1!$B$20=TRUE,$E185,a) -> -0.7754491018 | N185: =IF(Sheet1!$B$20=TRUE,G185,0) -> -15.62581678 | O185: =IF(Sheet1!$B$22=TRUE,$E185,a) -> -3.5 | P185: =IF(Sheet1!$B$22=TRUE,H185,0) -> 0 | Q185: =IF(Sheet1!$B$24=TRUE,$E185,a) -> -0.7754491018 | R185: =IF(Sheet1!$B$24=TRUE,I185,0) -> -4.699164545
E186: =E185+Sheet2!B$3 -> -0.76 | F186: -5.360693942 | G186: -14.65744833 | H186: 64.64135217 | I186: -6.797303596 | K186: =IF(Sheet1!$B$18=TRUE,E186,a) -> -0.7604790419 | L186: =IF(Sheet1!$B$18=TRUE,F186,0) -> -5.360693942 | M186: =IF(Sheet1!$B$20=TRUE,$E186,a) -> -0.7604790419 | N186: =IF(Sheet1!$B$20=TRUE,G186,0) -> -14.65744833 | O186: =IF(Sheet1!$B$22=TRUE,$E186,a) -> -3.5 | P186: =IF(Sheet1!$B$22=TRUE,H186,0) -> 0 | Q186: =IF(Sheet1!$B$24=TRUE,$E186,a) -> -0.7604790419 | R186: =IF(Sheet1!$B$24=TRUE,I186,0) -> -6.797303596
E187: =E186+Sheet2!B$3 -> -0.75 | F187: -5.572877762 | G187: -13.69060268 | H187: 64.52405924 | I187: -8.868550324 | K187: =IF(Sheet1!$B$18=TRUE,E187,a) -> -0.745508982 | L187: =IF(Sheet1!$B$18=TRUE,F187,0) -> -5.572877762 | M187: =IF(Sheet1!$B$20=TRUE,$E187,a) -> -0.745508982 | N187: =IF(Sheet1!$B$20=TRUE,G187,0) -> -13.69060268 | O187: =IF(Sheet1!$B$22=TRUE,$E187,a) -> -3.5 | P187: =IF(Sheet1!$B$22=TRUE,H187,0) -> 0 | Q187: =IF(Sheet1!$B$24=TRUE,$E187,a) -> -0.745508982 | R187: =IF(Sheet1!$B$24=TRUE,I187,0) -> -8.868550324
E188: =E187+Sheet2!B$3 -> -0.73 | F188: -5.770602142 | G188: -12.72574399 | H188: 64.3759609 | I188: -10.91290473 | K188: =IF(Sheet1!$B$18=TRUE,E188,a) -> -0.7305389222 | L188: =IF(Sheet1!$B$18=TRUE,F188,0) -> -5.770602142 | M188: =IF(Sheet1!$B$20=TRUE,$E188,a) -> -0.7305389222 | N188: =IF(Sheet1!$B$20=TRUE,G188,0) -> -12.72574399 | O188: =IF(Sheet1!$B$22=TRUE,$E188,a) -> -3.5 | P188: =IF(Sheet1!$B$22=TRUE,H188,0) -> 0 | Q188: =IF(Sheet1!$B$24=TRUE,$E188,a) -> -0.7305389222 | R188: =IF(Sheet1!$B$24=TRUE,I188,0) -> -10.91290473
E189: =E188+Sheet2!B$3 -> -0.72 | F189: -5.953900264 | G189: -11.76333041 | H189: 64.19745975 | I189: -12.93036681 | K189: =IF(Sheet1!$B$18=TRUE,E189,a) -> -0.7155688623 | L189: =IF(Sheet1!$B$18=TRUE,F189,0) -> -5.953900264 | M189: =IF(Sheet1!$B$20=TRUE,$E189,a) -> -0.7155688623 | N189: =IF(Sheet1!$B$20=TRUE,G189,0) -> -11.76333041 | O189: =IF(Sheet1!$B$22=TRUE,$E189,a) -> -3.5 | P189: =IF(Sheet1!$B$22=TRUE,H189,0) -> 0 | Q189: =IF(Sheet1!$B$24=TRUE,$E189,a) -> -0.7155688623 | R189: =IF(Sheet1!$B$24=TRUE,I189,0) -> -12.93036681
E190: =E189+Sheet2!B$3 -> -0.70 | F190: -6.122812122 | G190: -10.80381406 | H190: 63.98895837 | I190: -14.92093657 | K190: =IF(Sheet1!$B$18=TRUE,E190,a) -> -0.7005988024 | L190: =IF(Sheet1!$B$18=TRUE,F190,0) -> -6.122812122 | M190: =IF(Sheet1!$B$20=TRUE,$E190,a) -> -0.7005988024 | N190: =IF(Sheet1!$B$20=TRUE,G190,0) -> -10.80381406 | O190: =IF(Sheet1!$B$22=TRUE,$E190,a) -> -3.5 | P190: =IF(Sheet1!$B$22=TRUE,H190,0) -> 0 | Q190: =IF(Sheet1!$B$24=TRUE,$E190,a) -> -0.7005988024 | R190: =IF(Sheet1!$B$24=TRUE,I190,0) -> -14.92093657
E191: =E190+Sheet2!B$3 -> -0.69 | F191: -6.277384435 | G191: -9.84764103 | H191: 63.75085932 | I191: -16.88461401 | K191: =IF(Sheet1!$B$18=TRUE,E191,a) -> -0.6856287425 | L191: =IF(Sheet1!$B$18=TRUE,F191,0) -> -6.277384435 | M191: =IF(Sheet1!$B$20=TRUE,$E191,a) -> -0.6856287425 | N191: =IF(Sheet1!$B$20=TRUE,G191,0) -> -9.84764103 | O191: =IF(Sheet1!$B$22=TRUE,$E191,a) -> -3.5 | P191: =IF(Sheet1!$B$22=TRUE,H191,0) -> 0 | Q191: =IF(Sheet1!$B$24=TRUE,$E191,a) -> -0.6856287425 | R191: =IF(Sheet1!$B$24=TRUE,I191,0) -> -16.88461401
E192: =E191+Sheet2!B$3 -> -0.67 | F192: -6.417670554 | G192: -8.895251383 | H192: 63.48356519 | I192: -18.82139912 | K192: =IF(Sheet1!$B$18=TRUE,E192,a) -> -0.6706586826 | L192: =IF(Sheet1!$B$18=TRUE,F192,0) -> -6.417670554 | M192: =IF(Sheet1!$B$20=TRUE,$E192,a) -> -0.6706586826 | N192: =IF(Sheet1!$B$20=TRUE,G192,0) -> -8.895251383 | O192: =IF(Sheet1!$B$22=TRUE,$E192,a) -> -3.5 | P192: =IF(Sheet1!$B$22=TRUE,H192,0) -> 0 | Q192: =IF(Sheet1!$B$24=TRUE,$E192,a) -> -0.6706586826 | R192: =IF(Sheet1!$B$24=TRUE,I192,0) -> -18.82139912
E193: =E192+Sheet2!B$3 -> -0.66 | F193: -6.543730373 | G193: -7.94707916 | H193: 63.18747857 | I193: -20.73129191 | K193: =IF(Sheet1!$B$18=TRUE,E193,a) -> -0.6556886228 | L193: =IF(Sheet1!$B$18=TRUE,F193,0) -> -6.543730373 | M193: =IF(Sheet1!$B$20=TRUE,$E193,a) -> -0.6556886228 | N193: =IF(Sheet1!$B$20=TRUE,G193,0) -> -7.94707916 | O193: =IF(Sheet1!$B$22=TRUE,$E193,a) -> -3.5 | P193: =IF(Sheet1!$B$22=TRUE,H193,0) -> 0 | Q193: =IF(Sheet1!$B$24=TRUE,$E193,a) -> -0.6556886228 | R193: =IF(Sheet1!$B$24=TRUE,I193,0) -> -20.73129191
E194: =E193+Sheet2!B$3 -> -0.64 | F194: -6.655630237 | G194: -7.003552373 | H194: 62.86300202 | I194: -22.61429237 | K194: =IF(Sheet1!$B$18=TRUE,E194,a) -> -0.6407185629 | L194: =IF(Sheet1!$B$18=TRUE,F194,0) -> -6.655630237 | M194: =IF(Sheet1!$B$20=TRUE,$E194,a) -> -0.6407185629 | N194: =IF(Sheet1!$B$20=TRUE,G194,0) -> -7.003552373 | O194: =IF(Sheet1!$B$22=TRUE,$E194,a) -> -3.5 | P194: =IF(Sheet1!$B$22=TRUE,H194,0) -> 0 | Q194: =IF(Sheet1!$B$24=TRUE,$E194,a) -> -0.6407185629 | R194: =IF(Sheet1!$B$24=TRUE,I194,0) -> -22.61429237
E195: =E194+Sheet2!B$3 -> -0.63 | F195: -6.753442857 | G195: -6.065093008 | H195: 62.51053814 | I195: -24.47040052 | K195: =IF(Sheet1!$B$18=TRUE,E195,a) -> -0.625748503 | L195: =IF(Sheet1!$B$18=TRUE,F195,0) -> -6.753442857 | M195: =IF(Sheet1!$B$20=TRUE,$E195,a) -> -0.625748503 | N195: =IF(Sheet1!$B$20=TRUE,G195,0) -> -6.065093008 | O195: =IF(Sheet1!$B$22=TRUE,$E195,a) -> -3.5 | P195: =IF(Sheet1!$B$22=TRUE,H195,0) -> 0 | Q195: =IF(Sheet1!$B$24=TRUE,$E195,a) -> -0.625748503 | R195: =IF(Sheet1!$B$24=TRUE,I195,0) -> -24.47040052
E196: =E195+Sheet2!B$3 -> -0.61 | F196: =E196^5-2*E196^4-13*E196^3+14*E196^2+24*E196 -> -6.837247212 | G196: =5*E196^4-8*E196^3-39*E196^2+28*E196+24 -> -5.132117024 | H196: =20*E196^3-24*E196^2-78*E196+28 -> 62.1304895 | I196: =60*E196^2-48*E196-78 -> -26.29961634 | K196: =IF(Sheet1!$B$18=TRUE,E196,a) -> -0.6107784431 | L196: =IF(Sheet1!$B$18=TRUE,F196,0) -> -6.837247212 | M196: =IF(Sheet1!$B$20=TRUE,$E196,a) -> -0.6107784431 | N196: =IF(Sheet1!$B$20=TRUE,G196,0) -> -5.132117024 | O196: =IF(Sheet1!$B$22=TRUE,$E196,a) -> -3.5 | P196: =IF(Sheet1!$B$22=TRUE,H196,0) -> 0 | Q196: =IF(Sheet1!$B$24=TRUE,$E196,a) -> -0.6107784431 | R196: =IF(Sheet1!$B$24=TRUE,I196,0) -> -26.29961634
E197: =E196+Sheet2!B$3 -> -0.60 | F197: -6.907128464 | G197: -4.205034352 | H197: 61.72325867 | I197: -28.10193983 | K197: =IF(Sheet1!$B$18=TRUE,E197,a) -> -0.5958083832 | L197: =IF(Sheet1!$B$18=TRUE,F197,0) -> -6.907128464 | M197: =IF(Sheet1!$B$20=TRUE,$E197,a) -> -0.5958083832 | N197: =IF(Sheet1!$B$20=TRUE,G197,0) -> -4.205034352 | O197: =IF(Sheet1!$B$22=TRUE,$E197,a) -> -3.5 | P197: =IF(Sheet1!$B$22=TRUE,H197,0) -> 0 | Q197: =IF(Sheet1!$B$24=TRUE,$E197,a) -> -0.5958083832 | R197: =IF(Sheet1!$B$24=TRUE,I197,0) -> -28.10193983
E198: =E197+Sheet2!B$3 -> -0.58 | F198: -6.963177868 | G198: -3.284248898 | H198: 61.28924825 | I198: -29.87737101 | K198: =IF(Sheet1!$B$18=TRUE,E198,a) -> -0.5808383234 | L198: =IF(Sheet1!$B$18=TRUE,F198,0) -> -6.963177868 | M198: =IF(Sheet1!$B$20=TRUE,$E198,a) -> -0.5808383234 | N198: =IF(Sheet1!$B$20=TRUE,G198,0) -> -3.284248898 | O198: =IF(Sheet1!$B$22=TRUE,$E198,a) -> -3.5 | P198: =IF(Sheet1!$B$22=TRUE,H198,0) -> 0 | Q198: =IF(Sheet1!$B$24=TRUE,$E198,a) -> -0.5808383234 | R198: =IF(Sheet1!$B$24=TRUE,I198,0) -> -29.87737101
E199: =E198+Sheet2!B$3 -> -0.57 | F199: -7.005492679 | G199: -2.370158541 | H199: 60.8288608 | I199: -31.62590986 | K199: =IF(Sheet1!$B$18=TRUE,E199,a) -> -0.5658682635 | L199: =IF(Sheet1!$B$18=TRUE,F199,0) -> -7.005492679 | M199: =IF(Sheet1!$B$20=TRUE,$E199,a) -> -0.5658682635 | N199: =IF(Sheet1!$B$20=TRUE,G199,0) -> -2.370158541 | O199: =IF(Sheet1!$B$22=TRUE,$E199,a) -> -3.5 | P199: =IF(Sheet1!$B$22=TRUE,H199,0) -> 0 | Q199: =IF(Sheet1!$B$24=TRUE,$E199,a) -> -0.5658682635 | R199: =IF(Sheet1!$B$24=TRUE,I199,0) -> -31.62590986
E200: =E199+Sheet2!B$3 -> -0.55 | F200: -7.034176064 | G200: -1.463155134 | H200: 60.34249891 | I200: -33.34755638 | K200: =IF(Sheet1!$B$18=TRUE,E200,a) -> -0.5508982036 | L200: =IF(Sheet1!$B$18=TRUE,F200,0) -> -7.034176064 | M200: =IF(Sheet1!$B$20=TRUE,$E200,a) -> -0.5508982036 | N200: =IF(Sheet1!$B$20=TRUE,G200,0) -> -1.463155134 | O200: =IF(Sheet1!$B$22=TRUE,$E200,a) -> -3.5 | P200: =IF(Sheet1!$B$22=TRUE,H200,0) -> 0 | Q200: =IF(Sheet1!$B$24=TRUE,$E200,a) -> -0.5508982036 | R200: =IF(Sheet1!$B$24=TRUE,I200,0) -> -33.34755638
... 304 more rows

Sheet Sheet3
